Workbook

Sheet Data
C2: country= | D2: Chile
C3: ifs_code= | D3: 228
C4: Year= | D4: 2013
B10: t | C10: ifs_code | D10: Country | E10: Year | F10: Y (Nominal Billions USD) | G10: X (Nominal Billions USD) | H10: Q (Nominal Billions USD) | I10: NFA (Nominal MM USD) | J10: A (Nominal MM USD) | K10: L (Nominal MM USD) | L10: Exchange Rate (End of Period) [LCU/USD] | BN10: trade balance + sib | BO10: trade balance | BP10: sib | BQ10: sib/gdp | BR10: pib | BS10: pib/gdp | BT10: assets | BV10: liabilities | BW10: liabilities/gdp | BX10: yield on assets | BY10: yield on liabilities | BZ10: yield on assets in $ | CA10: yield on liabilities in $ | CB10: pcpi | CC10: inflation | CD10: Real GDP
B12: =B13-1 -> -31 | C12: =$D$3 -> 228 | D12: =$D$2 -> Chile | E12: =+E13-1 -> 1982 | F12: =IF(ISNUMBER(VLOOKUP($C12,[1]NGDPD!$E$2:$CE$305,MATCH($E12,[1]NGDPD!$K$1:$CE$1,0)+6,0)),VLOOKUP($C12,[1]NGDPD!$E$2:$CE$305,MATCH($E12,[1]NGDPD!$K$1:$CE$1,0)+6,0),"") -> 25.45081858 | G12: =IF(ISNUMBER(VLOOKUP($C12,[1]BX_WEO!$E$2:$CE$305,MATCH($E12,[1]BX_WEO!$K$1:$CE$1,0)+6,0)),VLOOKUP($C12,[1]BX_WEO!$E$2:$CE$305,MATCH($E12,[1]BX_WEO!$K$1:$CE$1,0)+6,0),"") -> 4.642 | H12: =IF(ISNUMBER(VLOOKUP($C12,[1]BM_WEO!$E$2:$CE$304,MATCH($E12,[1]BM_WEO!$K$1:$CE$1,0)+6,0)),VLOOKUP($C12,[1]BM_WEO!$E$2:$CE$304,MATCH($E12,[1]BM_WEO!$K$1:$CE$1,0)+6,0),"") -> 5.053 | I12: =IF(AND(ISNUMBER(J12),ISNUMBER(K12)),J12-K12,"") -> 238365.6633 | J12: 1030357.384 | K12: 791991.7205 | L12: 1 | BM12: 1982 | BN12: =((G12-H12)/F12) + (BQ12) -> -0.01186602306 | BO12: =((G12-H12)/F12) -> -0.01614879297 | BP12: =IF(ISNUMBER(VLOOKUP($C12,[1]BIS_WEO!$E$2:$CE$304,MATCH($E12,[1]BIS_WEO!$K$1:$CE$1,0)+6,0)),VLOOKUP($C12,[1]BIS_WEO!$E$2:$CE$304,MATCH($E12,[1]BIS_WEO!$K$1:$CE$1,0)+6,0),"") -> 0.109 | BQ12: =BP12/F12 -> 0.004282769911 | BR12: 35.164 | BS12: =BR12/(F12) -> 1.381645148 | BT12: =IF(ISNUMBER(VLOOKUP($C12,[1]IA_BP6!$E$2:$CE$304,MATCH($E12,[1]IA_BP6!$K$1:$CE$1,0)+6,0)),VLOOKUP($C12,[1]IA_BP6!$E$2:$CE$304,MATCH($E12,[1]IA_BP6!$K$1:$CE$1,0)+6,0),"") ->  | BV12: =IF(ISNUMBER(VLOOKUP($C12,[1]IL_BP6!$E$2:$CE$304,MATCH($E12,[1]IL_BP6!$K$1:$CE$1,0)+6,0)),VLOOKUP($C12,[1]IL_BP6!$E$2:$CE$304,MATCH($E12,[1]IL_BP6!$K$1:$CE$1,0)+6,0),"") ->  | BZ12: =IF(ISNUMBER(VLOOKUP($C12,[1]BXIP!$E$2:$CD$304,MATCH($E12,[1]BXIP!$K$1:$CD$1,0)+6,0)),VLOOKUP($C12,[1]BXIP!$E$2:$CD$304,MATCH($E12,[1]BXIP!$K$1:$CD$1,0)+6,0),"") ->  | CA12: =IF(ISNUMBER(VLOOKUP($C12,[1]BMIP!$E$2:$CD$304,MATCH($E12,[1]BXIP!$K$1:$CD$1,0)+6,0)),VLOOKUP($C12,[1]BMIP!$E$2:$CD$304,MATCH($E12,[1]BMIP!$K$1:$CD$1,0)+6,0),"") ->  | CB12: =IF(ISNUMBER(VLOOKUP($C12,[1]PCPI!$E$2:$CE$304,MATCH($E12,[1]PCPI!$K$1:$CE$1,0)+6,0)),VLOOKUP($C12,[1]PCPI!$E$2:$CE$304,MATCH($E12,[1]PCPI!$K$1:$CE$1,0)+6,0),"") -> 5.655638802 | CD12: =IF(ISNUMBER(VLOOKUP($C12,[1]NGDP_R!$E$2:$CE$304,MATCH($E12,[1]NGDP_R!$K$1:$CE$1,0)+6,0)),VLOOKUP($C12,[1]NGDP_R!$E$2:$CE$304,MATCH($E12,[1]NGDP_R!$K$1:$CE$1,0)+6,0),"") -> 29402.49594
B13: -30 | C13: 228 | D13: Chile | E13: 1983 | F13: =IF(ISNUMBER(VLOOKUP($C13,[1]NGDPD!$E$2:$CE$305,MATCH($E13,[1]NGDPD!$K$1:$CE$1,0)+6,0)),VLOOKUP($C13,[1]NGDPD!$E$2:$CE$305,MATCH($E13,[1]NGDPD!$K$1:$CE$1,0)+6,0),"") -> 20.67287048 | G13: =IF(ISNUMBER(VLOOKUP($C13,[1]BX_WEO!$E$2:$CE$305,MATCH($E13,[1]BX_WEO!$K$1:$CE$1,0)+6,0)),VLOOKUP($C13,[1]BX_WEO!$E$2:$CE$305,MATCH($E13,[1]BX_WEO!$K$1:$CE$1,0)+6,0),"") -> 4.628 | H13: =IF(ISNUMBER(VLOOKUP($C13,[1]BM_WEO!$E$2:$CE$304,MATCH($E13,[1]BM_WEO!$K$1:$CE$1,0)+6,0)),VLOOKUP($C13,[1]BM_WEO!$E$2:$CE$304,MATCH($E13,[1]BM_WEO!$K$1:$CE$1,0)+6,0),"") -> 4.081 | I13: =IF(AND(ISNUMBER(J13),ISNUMBER(K13)),J13-K13,"") -> 261495.1232 | J13: 1206656.686 | K13: 945161.5629 | L13: 1 | BM13: 1983 | BN13: 0.031151939 | BO13: =((G13-H13)/F13) -> 0.02645979912 | BP13: =IF(ISNUMBER(VLOOKUP($C13,[1]BIS_WEO!$E$2:$CE$304,MATCH($E13,[1]BIS_WEO!$K$1:$CE$1,0)+6,0)),VLOOKUP($C13,[1]BIS_WEO!$E$2:$CE$304,MATCH($E13,[1]BIS_WEO!$K$1:$CE$1,0)+6,0),"") -> 0.097 | BQ13: =BP13/F13 -> 0.00469213988 | BR13: 36.384 | BS13: 1.759987808 | BT13: =IF(ISNUMBER(VLOOKUP($C13,[1]IA_BP6!$E$2:$CE$304,MATCH($E13,[1]IA_BP6!$K$1:$CE$1,0)+6,0)),VLOOKUP($C13,[1]IA_BP6!$E$2:$CE$304,MATCH($E13,[1]IA_BP6!$K$1:$CE$1,0)+6,0),"") ->  | BV13: =IF(ISNUMBER(VLOOKUP($C13,[1]IL_BP6!$E$2:$CE$304,MATCH($E13,[1]IL_BP6!$K$1:$CE$1,0)+6,0)),VLOOKUP($C13,[1]IL_BP6!$E$2:$CE$304,MATCH($E13,[1]IL_BP6!$K$1:$CE$1,0)+6,0),"") ->  | BZ13: =IF(ISNUMBER(VLOOKUP($C13,[1]BXIP!$E$2:$CD$304,MATCH($E13,[1]BXIP!$K$1:$CD$1,0)+6,0)),VLOOKUP($C13,[1]BXIP!$E$2:$CD$304,MATCH($E13,[1]BXIP!$K$1:$CD$1,0)+6,0),"") ->  | CA13: =IF(ISNUMBER(VLOOKUP($C13,[1]BMIP!$E$2:$CD$304,MATCH($E13,[1]BXIP!$K$1:$CD$1,0)+6,0)),VLOOKUP($C13,[1]BMIP!$E$2:$CD$304,MATCH($E13,[1]BMIP!$K$1:$CD$1,0)+6,0),"") ->  | CB13: =IF(ISNUMBER(VLOOKUP($C13,[1]PCPI!$E$2:$CE$304,MATCH($E13,[1]PCPI!$K$1:$CE$1,0)+6,0)),VLOOKUP($C13,[1]PCPI!$E$2:$CE$304,MATCH($E13,[1]PCPI!$K$1:$CE$1,0)+6,0),"") -> 7.197221377 | CC13: =CB13/CB12-1 -> 0.2725744393 | CD13: =IF(ISNUMBER(VLOOKUP($C13,[1]NGDP_R!$E$2:$CE$304,MATCH($E13,[1]NGDP_R!$K$1:$CE$1,0)+6,0)),VLOOKUP($C13,[1]NGDP_R!$E$2:$CE$304,MATCH($E13,[1]NGDP_R!$K$1:$CE$1,0)+6,0),"") -> 28578.62739
B14: -29 | C14: 228 | D14: Chile | E14: 1984 | F14: =IF(ISNUMBER(VLOOKUP($C14,[1]NGDPD!$E$2:$CE$305,MATCH($E14,[1]NGDPD!$K$1:$CE$1,0)+6,0)),VLOOKUP($C14,[1]NGDPD!$E$2:$CE$305,MATCH($E14,[1]NGDPD!$K$1:$CE$1,0)+6,0),"") -> 20.10386511 | G14: =IF(ISNUMBER(VLOOKUP($C14,[1]BX_WEO!$E$2:$CE$305,MATCH($E14,[1]BX_WEO!$K$1:$CE$1,0)+6,0)),VLOOKUP($C14,[1]BX_WEO!$E$2:$CE$305,MATCH($E14,[1]BX_WEO!$K$1:$CE$1,0)+6,0),"") -> 4.314 | H14: =IF(ISNUMBER(VLOOKUP($C14,[1]BM_WEO!$E$2:$CE$304,MATCH($E14,[1]BM_WEO!$K$1:$CE$1,0)+6,0)),VLOOKUP($C14,[1]BM_WEO!$E$2:$CE$304,MATCH($E14,[1]BM_WEO!$K$1:$CE$1,0)+6,0),"") -> 4.495 | I14: 140140.2191 | J14: 1214477.787 | K14: 1074337.568 | L14: 1 | BM14: 1984 | BN14: -0.003680884228 | BO14: -0.009003243854 | BP14: =IF(ISNUMBER(VLOOKUP($C14,[1]BIS_WEO!$E$2:$CE$304,MATCH($E14,[1]BIS_WEO!$K$1:$CE$1,0)+6,0)),VLOOKUP($C14,[1]BIS_WEO!$E$2:$CE$304,MATCH($E14,[1]BIS_WEO!$K$1:$CE$1,0)+6,0),"") -> 0.107 | BQ14: 0.005322359626 | BR14: 35.068 | BS14: 1.74434119 | BT14: =IF(ISNUMBER(VLOOKUP($C14,[1]IA_BP6!$E$2:$CE$304,MATCH($E14,[1]IA_BP6!$K$1:$CE$1,0)+6,0)),VLOOKUP($C14,[1]IA_BP6!$E$2:$CE$304,MATCH($E14,[1]IA_BP6!$K$1:$CE$1,0)+6,0),"") ->  | BV14: =IF(ISNUMBER(VLOOKUP($C14,[1]IL_BP6!$E$2:$CE$304,MATCH($E14,[1]IL_BP6!$K$1:$CE$1,0)+6,0)),VLOOKUP($C14,[1]IL_BP6!$E$2:$CE$304,MATCH($E14,[1]IL_BP6!$K$1:$CE$1,0)+6,0),"") ->  | BZ14: =IF(ISNUMBER(VLOOKUP($C14,[1]BXIP!$E$2:$CD$304,MATCH($E14,[1]BXIP!$K$1:$CD$1,0)+6,0)),VLOOKUP($C14,[1]BXIP!$E$2:$CD$304,MATCH($E14,[1]BXIP!$K$1:$CD$1,0)+6,0),"") ->  | CA14: =IF(ISNUMBER(VLOOKUP($C14,[1]BMIP!$E$2:$CD$304,MATCH($E14,[1]BXIP!$K$1:$CD$1,0)+6,0)),VLOOKUP($C14,[1]BMIP!$E$2:$CD$304,MATCH($E14,[1]BMIP!$K$1:$CD$1,0)+6,0),"") ->  | CB14: =IF(ISNUMBER(VLOOKUP($C14,[1]PCPI!$E$2:$CE$304,MATCH($E14,[1]PCPI!$K$1:$CE$1,0)+6,0)),VLOOKUP($C14,[1]PCPI!$E$2:$CE$304,MATCH($E14,[1]PCPI!$K$1:$CE$1,0)+6,0),"") -> 8.626599027 | CC14: =CB14/CB13-1 -> 0.1986013178 | CD14: =IF(ISNUMBER(VLOOKUP($C14,[1]NGDP_R!$E$2:$CE$304,MATCH($E14,[1]NGDP_R!$K$1:$CE$1,0)+6,0)),VLOOKUP($C14,[1]NGDP_R!$E$2:$CE$304,MATCH($E14,[1]NGDP_R!$K$1:$CE$1,0)+6,0),"") -> 30260.63485
B15: -28 | C15: 228 | D15: Chile | E15: 1985 | F15: =IF(ISNUMBER(VLOOKUP($C15,[1]NGDPD!$E$2:$CE$305,MATCH($E15,[1]NGDPD!$K$1:$CE$1,0)+6,0)),VLOOKUP($C15,[1]NGDPD!$E$2:$CE$305,MATCH($E15,[1]NGDPD!$K$1:$CE$1,0)+6,0),"") -> 17.23818891 | G15: =IF(ISNUMBER(VLOOKUP($C15,[1]BX_WEO!$E$2:$CE$305,MATCH($E15,[1]BX_WEO!$K$1:$CE$1,0)+6,0)),VLOOKUP($C15,[1]BX_WEO!$E$2:$CE$305,MATCH($E15,[1]BX_WEO!$K$1:$CE$1,0)+6,0),"") -> 4.49662 | H15: =IF(ISNUMBER(VLOOKUP($C15,[1]BM_WEO!$E$2:$CE$304,MATCH($E15,[1]BM_WEO!$K$1:$CE$1,0)+6,0)),VLOOKUP($C15,[1]BM_WEO!$E$2:$CE$304,MATCH($E15,[1]BM_WEO!$K$1:$CE$1,0)+6,0),"") -> 4.0009 | I15: 104280.7106 | J15: 1392052.452 | K15: 1287771.742 | L15: 1 | BM15: 1985 | BN15: 0.03725565391 | BO15: 0.0287570813 | BP15: =IF(ISNUMBER(VLOOKUP($C15,[1]BIS_WEO!$E$2:$CE$304,MATCH($E15,[1]BIS_WEO!$K$1:$CE$1,0)+6,0)),VLOOKUP($C15,[1]BIS_WEO!$E$2:$CE$304,MATCH($E15,[1]BIS_WEO!$K$1:$CE$1,0)+6,0),"") -> 0.1465 | BQ15: 0.008498572603 | BR15: 25.721 | BS15: 1.492094102 | BT15: =IF(ISNUMBER(VLOOKUP($C15,[1]IA_BP6!$E$2:$CE$304,MATCH($E15,[1]IA_BP6!$K$1:$CE$1,0)+6,0)),VLOOKUP($C15,[1]IA_BP6!$E$2:$CE$304,MATCH($E15,[1]IA_BP6!$K$1:$CE$1,0)+6,0),"") ->  | BV15: =IF(ISNUMBER(VLOOKUP($C15,[1]IL_BP6!$E$2:$CE$304,MATCH($E15,[1]IL_BP6!$K$1:$CE$1,0)+6,0)),VLOOKUP($C15,[1]IL_BP6!$E$2:$CE$304,MATCH($E15,[1]IL_BP6!$K$1:$CE$1,0)+6,0),"") ->  | BZ15: =IF(ISNUMBER(VLOOKUP($C15,[1]BXIP!$E$2:$CD$304,MATCH($E15,[1]BXIP!$K$1:$CD$1,0)+6,0)),VLOOKUP($C15,[1]BXIP!$E$2:$CD$304,MATCH($E15,[1]BXIP!$K$1:$CD$1,0)+6,0),"") ->  | CA15: =IF(ISNUMBER(VLOOKUP($C15,[1]BMIP!$E$2:$CD$304,MATCH($E15,[1]BXIP!$K$1:$CD$1,0)+6,0)),VLOOKUP($C15,[1]BMIP!$E$2:$CD$304,MATCH($E15,[1]BMIP!$K$1:$CD$1,0)+6,0),"") ->  | CB15: =IF(ISNUMBER(VLOOKUP($C15,[1]PCPI!$E$2:$CE$304,MATCH($E15,[1]PCPI!$K$1:$CE$1,0)+6,0)),VLOOKUP($C15,[1]PCPI!$E$2:$CE$304,MATCH($E15,[1]PCPI!$K$1:$CE$1,0)+6,0),"") -> 11.27524923 | CC15: 0.3070329567 | CD15: =IF(ISNUMBER(VLOOKUP($C15,[1]NGDP_R!$E$2:$CE$304,MATCH($E15,[1]NGDP_R!$K$1:$CE$1,0)+6,0)),VLOOKUP($C15,[1]NGDP_R!$E$2:$CE$304,MATCH($E15,[1]NGDP_R!$K$1:$CE$1,0)+6,0),"") -> 30856.24895
B16: -27 | C16: 228 | D16: Chile | E16: 1986 | F16: =IF(ISNUMBER(VLOOKUP($C16,[1]NGDPD!$E$2:$CE$305,MATCH($E16,[1]NGDPD!$K$1:$CE$1,0)+6,0)),VLOOKUP($C16,[1]NGDPD!$E$2:$CE$305,MATCH($E16,[1]NGDPD!$K$1:$CE$1,0)+6,0),"") -> 18.53115041 | G16: =IF(ISNUMBER(VLOOKUP($C16,[1]BX_WEO!$E$2:$CE$305,MATCH($E16,[1]BX_WEO!$K$1:$CE$1,0)+6,0)),VLOOKUP($C16,[1]BX_WEO!$E$2:$CE$305,MATCH($E16,[1]BX_WEO!$K$1:$CE$1,0)+6,0),"") -> 5.23226 | H16: =IF(ISNUMBER(VLOOKUP($C16,[1]BM_WEO!$E$2:$CE$304,MATCH($E16,[1]BM_WEO!$K$1:$CE$1,0)+6,0)),VLOOKUP($C16,[1]BM_WEO!$E$2:$CE$304,MATCH($E16,[1]BM_WEO!$K$1:$CE$1,0)+6,0),"") -> 4.6045 | I16: 109231.3184 | J16: 1679715.374 | K16: 1570484.056 | L16: 1 | BM16: 1986 | BN16: 0.03844661471 | BO16: 0.03387593247 | BP16: =IF(ISNUMBER(VLOOKUP($C16,[1]BIS_WEO!$E$2:$CE$304,MATCH($E16,[1]BIS_WEO!$K$1:$CE$1,0)+6,0)),VLOOKUP($C16,[1]BIS_WEO!$E$2:$CE$304,MATCH($E16,[1]BIS_WEO!$K$1:$CE$1,0)+6,0),"") -> 0.0847 | BQ16: 0.004570682236 | BR16: 15.492 | BS16: 0.8359977473 | BT16: =IF(ISNUMBER(VLOOKUP($C16,[1]IA_BP6!$E$2:$CE$304,MATCH($E16,[1]IA_BP6!$K$1:$CE$1,0)+6,0)),VLOOKUP($C16,[1]IA_BP6!$E$2:$CE$304,MATCH($E16,[1]IA_BP6!$K$1:$CE$1,0)+6,0),"") ->  | BV16: =IF(ISNUMBER(VLOOKUP($C16,[1]IL_BP6!$E$2:$CE$304,MATCH($E16,[1]IL_BP6!$K$1:$CE$1,0)+6,0)),VLOOKUP($C16,[1]IL_BP6!$E$2:$CE$304,MATCH($E16,[1]IL_BP6!$K$1:$CE$1,0)+6,0),"") ->  | BZ16: =IF(ISNUMBER(VLOOKUP($C16,[1]BXIP!$E$2:$CD$304,MATCH($E16,[1]BXIP!$K$1:$CD$1,0)+6,0)),VLOOKUP($C16,[1]BXIP!$E$2:$CD$304,MATCH($E16,[1]BXIP!$K$1:$CD$1,0)+6,0),"") ->  | CA16: =IF(ISNUMBER(VLOOKUP($C16,[1]BMIP!$E$2:$CD$304,MATCH($E16,[1]BXIP!$K$1:$CD$1,0)+6,0)),VLOOKUP($C16,[1]BMIP!$E$2:$CD$304,MATCH($E16,[1]BMIP!$K$1:$CD$1,0)+6,0),"") ->  | CB16: =IF(ISNUMBER(VLOOKUP($C16,[1]PCPI!$E$2:$CE$304,MATCH($E16,[1]PCPI!$K$1:$CE$1,0)+6,0)),VLOOKUP($C16,[1]PCPI!$E$2:$CE$304,MATCH($E16,[1]PCPI!$K$1:$CE$1,0)+6,0),"") -> 13.47132234 | CC16: 0.1947693628 | CD16: =IF(ISNUMBER(VLOOKUP($C16,[1]NGDP_R!$E$2:$CE$304,MATCH($E16,[1]NGDP_R!$K$1:$CE$1,0)+6,0)),VLOOKUP($C16,[1]NGDP_R!$E$2:$CE$304,MATCH($E16,[1]NGDP_R!$K$1:$CE$1,0)+6,0),"") -> 32583.0347
B17: -26 | C17: 228 | D17: Chile | E17: 1987 | F17: =IF(ISNUMBER(VLOOKUP($C17,[1]NGDPD!$E$2:$CE$305,MATCH($E17,[1]NGDPD!$K$1:$CE$1,0)+6,0)),VLOOKUP($C17,[1]NGDPD!$E$2:$CE$305,MATCH($E17,[1]NGDPD!$K$1:$CE$1,0)+6,0),"") -> 21.85611386 | G17: =IF(ISNUMBER(VLOOKUP($C17,[1]BX_WEO!$E$2:$CE$305,MATCH($E17,[1]BX_WEO!$K$1:$CE$1,0)+6,0)),VLOOKUP($C17,[1]BX_WEO!$E$2:$CE$305,MATCH($E17,[1]BX_WEO!$K$1:$CE$1,0)+6,0),"") -> 6.348 | H17: =IF(ISNUMBER(VLOOKUP($C17,[1]BM_WEO!$E$2:$CE$304,MATCH($E17,[1]BM_WEO!$K$1:$CE$1,0)+6,0)),VLOOKUP($C17,[1]BM_WEO!$E$2:$CE$304,MATCH($E17,[1]BM_WEO!$K$1:$CE$1,0)+6,0),"") -> 5.4931 | I17: 59616.51373 | J17: 1850216.281 | K17: 1790599.767 | L17: 1 | BM17: 1987 | BN17: 0.04543808686 | BO17: 0.03911491336 | BP17: =IF(ISNUMBER(VLOOKUP($C17,[1]BIS_WEO!$E$2:$CE$304,MATCH($E17,[1]BIS_WEO!$K$1:$CE$1,0)+6,0)),VLOOKUP($C17,[1]BIS_WEO!$E$2:$CE$304,MATCH($E17,[1]BIS_WEO!$K$1:$CE$1,0)+6,0),"") -> 0.1382 | BQ17: 0.006323173501 | BR17: 14.291 | BS17: 0.6538673842 | BT17: =IF(ISNUMBER(VLOOKUP($C17,[1]IA_BP6!$E$2:$CE$304,MATCH($E17,[1]IA_BP6!$K$1:$CE$1,0)+6,0)),VLOOKUP($C17,[1]IA_BP6!$E$2:$CE$304,MATCH($E17,[1]IA_BP6!$K$1:$CE$1,0)+6,0),"") ->  | BV17: =IF(ISNUMBER(VLOOKUP($C17,[1]IL_BP6!$E$2:$CE$304,MATCH($E17,[1]IL_BP6!$K$1:$CE$1,0)+6,0)),VLOOKUP($C17,[1]IL_BP6!$E$2:$CE$304,MATCH($E17,[1]IL_BP6!$K$1:$CE$1,0)+6,0),"") ->  | BZ17: =IF(ISNUMBER(VLOOKUP($C17,[1]BXIP!$E$2:$CD$304,MATCH($E17,[1]BXIP!$K$1:$CD$1,0)+6,0)),VLOOKUP($C17,[1]BXIP!$E$2:$CD$304,MATCH($E17,[1]BXIP!$K$1:$CD$1,0)+6,0),"") ->  | CA17: =IF(ISNUMBER(VLOOKUP($C17,[1]BMIP!$E$2:$CD$304,MATCH($E17,[1]BXIP!$K$1:$CD$1,0)+6,0)),VLOOKUP($C17,[1]BMIP!$E$2:$CD$304,MATCH($E17,[1]BMIP!$K$1:$CD$1,0)+6,0),"") ->  | CB17: =IF(ISNUMBER(VLOOKUP($C17,[1]PCPI!$E$2:$CE$304,MATCH($E17,[1]PCPI!$K$1:$CE$1,0)+6,0)),VLOOKUP($C17,[1]PCPI!$E$2:$CE$304,MATCH($E17,[1]PCPI!$K$1:$CE$1,0)+6,0),"") -> 16.1495254 | CC17: 0.1988077336 | CD17: =IF(ISNUMBER(VLOOKUP($C17,[1]NGDP_R!$E$2:$CE$304,MATCH($E17,[1]NGDP_R!$K$1:$CE$1,0)+6,0)),VLOOKUP($C17,[1]NGDP_R!$E$2:$CE$304,MATCH($E17,[1]NGDP_R!$K$1:$CE$1,0)+6,0),"") -> 34727.2607
B18: -25 | C18: 228 | D18: Chile | E18: 1988 | F18: =IF(ISNUMBER(VLOOKUP($C18,[1]NGDPD!$E$2:$CE$305,MATCH($E18,[1]NGDPD!$K$1:$CE$1,0)+6,0)),VLOOKUP($C18,[1]NGDPD!$E$2:$CE$305,MATCH($E18,[1]NGDPD!$K$1:$CE$1,0)+6,0),"") -> 25.76501097 | G18: =IF(ISNUMBER(VLOOKUP($C18,[1]BX_WEO!$E$2:$CE$305,MATCH($E18,[1]BX_WEO!$K$1:$CE$1,0)+6,0)),VLOOKUP($C18,[1]BX_WEO!$E$2:$CE$305,MATCH($E18,[1]BX_WEO!$K$1:$CE$1,0)+6,0),"") -> 8.144 | H18: =IF(ISNUMBER(VLOOKUP($C18,[1]BM_WEO!$E$2:$CE$304,MATCH($E18,[1]BM_WEO!$K$1:$CE$1,0)+6,0)),VLOOKUP($C18,[1]BM_WEO!$E$2:$CE$304,MATCH($E18,[1]BM_WEO!$K$1:$CE$1,0)+6,0),"") -> 6.6247 | I18: 21478.41587 | J18: 2098850.713 | K18: 2077372.298 | L18: 1 | BM18: 1988 | BN18: 0.06597707262 | BO18: 0.05896756658 | BP18: =IF(ISNUMBER(VLOOKUP($C18,[1]BIS_WEO!$E$2:$CE$304,MATCH($E18,[1]BIS_WEO!$K$1:$CE$1,0)+6,0)),VLOOKUP($C18,[1]BIS_WEO!$E$2:$CE$304,MATCH($E18,[1]BIS_WEO!$K$1:$CE$1,0)+6,0),"") -> 0.1806 | BQ18: 0.007009506038 | BR18: 18.684 | BS18: 0.7251694951 | BT18: =IF(ISNUMBER(VLOOKUP($C18,[1]IA_BP6!$E$2:$CE$304,MATCH($E18,[1]IA_BP6!$K$1:$CE$1,0)+6,0)),VLOOKUP($C18,[1]IA_BP6!$E$2:$CE$304,MATCH($E18,[1]IA_BP6!$K$1:$CE$1,0)+6,0),"") ->  | BV18: =IF(ISNUMBER(VLOOKUP($C18,[1]IL_BP6!$E$2:$CE$304,MATCH($E18,[1]IL_BP6!$K$1:$CE$1,0)+6,0)),VLOOKUP($C18,[1]IL_BP6!$E$2:$CE$304,MATCH($E18,[1]IL_BP6!$K$1:$CE$1,0)+6,0),"") -> 5.76412565 | BZ18: =IF(ISNUMBER(VLOOKUP($C18,[1]BXIP!$E$2:$CD$304,MATCH($E18,[1]BXIP!$K$1:$CD$1,0)+6,0)),VLOOKUP($C18,[1]BXIP!$E$2:$CD$304,MATCH($E18,[1]BXIP!$K$1:$CD$1,0)+6,0),"") ->  | CA18: =IF(ISNUMBER(VLOOKUP($C18,[1]BMIP!$E$2:$CD$304,MATCH($E18,[1]BXIP!$K$1:$CD$1,0)+6,0)),VLOOKUP($C18,[1]BMIP!$E$2:$CD$304,MATCH($E18,[1]BMIP!$K$1:$CD$1,0)+6,0),"") ->  | CB18: =IF(ISNUMBER(VLOOKUP($C18,[1]PCPI!$E$2:$CE$304,MATCH($E18,[1]PCPI!$K$1:$CE$1,0)+6,0)),VLOOKUP($C18,[1]PCPI!$E$2:$CE$304,MATCH($E18,[1]PCPI!$K$1:$CE$1,0)+6,0),"") -> 18.52098633 | CC18: 0.146844001 | CD18: =IF(ISNUMBER(VLOOKUP($C18,[1]NGDP_R!$E$2:$CE$304,MATCH($E18,[1]NGDP_R!$K$1:$CE$1,0)+6,0)),VLOOKUP($C18,[1]NGDP_R!$E$2:$CE$304,MATCH($E18,[1]NGDP_R!$K$1:$CE$1,0)+6,0),"") -> 37258.12856
B19: -24 | C19: 228 | D19: Chile | E19: 1989 | F19: =IF(ISNUMBER(VLOOKUP($C19,[1]NGDPD!$E$2:$CE$305,MATCH($E19,[1]NGDPD!$K$1:$CE$1,0)+6,0)),VLOOKUP($C19,[1]NGDPD!$E$2:$CE$305,MATCH($E19,[1]NGDPD!$K$1:$CE$1,0)+6,0),"") -> 29.67967937 | G19: =IF(ISNUMBER(VLOOKUP($C19,[1]BX_WEO!$E$2:$CE$305,MATCH($E19,[1]BX_WEO!$K$1:$CE$1,0)+6,0)),VLOOKUP($C19,[1]BX_WEO!$E$2:$CE$305,MATCH($E19,[1]BX_WEO!$K$1:$CE$1,0)+6,0),"") -> 9.61265 | H19: =IF(ISNUMBER(VLOOKUP($C19,[1]BM_WEO!$E$2:$CE$304,MATCH($E19,[1]BM_WEO!$K$1:$CE$1,0)+6,0)),VLOOKUP($C19,[1]BM_WEO!$E$2:$CE$304,MATCH($E19,[1]BM_WEO!$K$1:$CE$1,0)+6,0),"") -> 8.59011 | I19: -33713.19177 | J19: 2447739.575 | K19: 2481452.766 | L19: 1 | BM19: 1989 | BN19: 0.04207390466 | BO19: 0.03445252853 | BP19: =IF(ISNUMBER(VLOOKUP($C19,[1]BIS_WEO!$E$2:$CE$304,MATCH($E19,[1]BIS_WEO!$K$1:$CE$1,0)+6,0)),VLOOKUP($C19,[1]BIS_WEO!$E$2:$CE$304,MATCH($E19,[1]BIS_WEO!$K$1:$CE$1,0)+6,0),"") -> 0.2262 | BQ19: 0.007621376134 | BR19: 19.823 | BS19: 0.6678980509 | BT19: =IF(ISNUMBER(VLOOKUP($C19,[1]IA_BP6!$E$2:$CE$304,MATCH($E19,[1]IA_BP6!$K$1:$CE$1,0)+6,0)),VLOOKUP($C19,[1]IA_BP6!$E$2:$CE$304,MATCH($E19,[1]IA_BP6!$K$1:$CE$1,0)+6,0),"") ->  | BV19: =IF(ISNUMBER(VLOOKUP($C19,[1]IL_BP6!$E$2:$CE$304,MATCH($E19,[1]IL_BP6!$K$1:$CE$1,0)+6,0)),VLOOKUP($C19,[1]IL_BP6!$E$2:$CE$304,MATCH($E19,[1]IL_BP6!$K$1:$CE$1,0)+6,0),"") -> 4.472705461 | BZ19: =IF(ISNUMBER(VLOOKUP($C19,[1]BXIP!$E$2:$CD$304,MATCH($E19,[1]BXIP!$K$1:$CD$1,0)+6,0)),VLOOKUP($C19,[1]BXIP!$E$2:$CD$304,MATCH($E19,[1]BXIP!$K$1:$CD$1,0)+6,0),"") ->  | CA19: =IF(ISNUMBER(VLOOKUP($C19,[1]BMIP!$E$2:$CD$304,MATCH($E19,[1]BXIP!$K$1:$CD$1,0)+6,0)),VLOOKUP($C19,[1]BMIP!$E$2:$CD$304,MATCH($E19,[1]BMIP!$K$1:$CD$1,0)+6,0),"") ->  | CB19: =IF(ISNUMBER(VLOOKUP($C19,[1]PCPI!$E$2:$CE$304,MATCH($E19,[1]PCPI!$K$1:$CE$1,0)+6,0)),VLOOKUP($C19,[1]PCPI!$E$2:$CE$304,MATCH($E19,[1]PCPI!$K$1:$CE$1,0)+6,0),"") -> 21.67472125 | CC19: 0.1702789941 | CD19: =IF(ISNUMBER(VLOOKUP($C19,[1]NGDP_R!$E$2:$CE$304,MATCH($E19,[1]NGDP_R!$K$1:$CE$1,0)+6,0)),VLOOKUP($C19,[1]NGDP_R!$E$2:$CE$304,MATCH($E19,[1]NGDP_R!$K$1:$CE$1,0)+6,0),"") -> 41209.3126
B20: -23 | C20: 228 | D20: Chile | E20: 1990 | F20: =IF(ISNUMBER(VLOOKUP($C20,[1]NGDPD!$E$2:$CE$305,MATCH($E20,[1]NGDPD!$K$1:$CE$1,0)+6,0)),VLOOKUP($C20,[1]NGDPD!$E$2:$CE$305,MATCH($E20,[1]NGDPD!$K$1:$CE$1,0)+6,0),"") -> 32.99848036 | G20: =IF(ISNUMBER(VLOOKUP($C20,[1]BX_WEO!$E$2:$CE$305,MATCH($E20,[1]BX_WEO!$K$1:$CE$1,0)+6,0)),VLOOKUP($C20,[1]BX_WEO!$E$2:$CE$305,MATCH($E20,[1]BX_WEO!$K$1:$CE$1,0)+6,0),"") -> 10.22160001 | H20: =IF(ISNUMBER(VLOOKUP($C20,[1]BM_WEO!$E$2:$CE$304,MATCH($E20,[1]BM_WEO!$K$1:$CE$1,0)+6,0)),VLOOKUP($C20,[1]BM_WEO!$E$2:$CE$304,MATCH($E20,[1]BM_WEO!$K$1:$CE$1,0)+6,0),"") -> 9.172999986 | I20: -149523.1118 | J20: 2415654.254 | K20: 2565177.365 | L20: 1 | BM20: 1990 | BN20: 0.03776234585 | BO20: 0.03177722175 | BP20: =IF(ISNUMBER(VLOOKUP($C20,[1]BIS_WEO!$E$2:$CE$304,MATCH($E20,[1]BIS_WEO!$K$1:$CE$1,0)+6,0)),VLOOKUP($C20,[1]BIS_WEO!$E$2:$CE$304,MATCH($E20,[1]BIS_WEO!$K$1:$CE$1,0)+6,0),"") -> 0.1975 | BQ20: 0.005985124097 | BR20: 28.549 | BS20: 0.8651610524 | BT20: =IF(ISNUMBER(VLOOKUP($C20,[1]IA_BP6!$E$2:$CE$304,MATCH($E20,[1]IA_BP6!$K$1:$CE$1,0)+6,0)),VLOOKUP($C20,[1]IA_BP6!$E$2:$CE$304,MATCH($E20,[1]IA_BP6!$K$1:$CE$1,0)+6,0),"") ->  | BV20: =IF(ISNUMBER(VLOOKUP($C20,[1]IL_BP6!$E$2:$CE$304,MATCH($E20,[1]IL_BP6!$K$1:$CE$1,0)+6,0)),VLOOKUP($C20,[1]IL_BP6!$E$2:$CE$304,MATCH($E20,[1]IL_BP6!$K$1:$CE$1,0)+6,0),"") -> 4.012331021 | BZ20: =IF(ISNUMBER(VLOOKUP($C20,[1]BXIP!$E$2:$CD$304,MATCH($E20,[1]BXIP!$K$1:$CD$1,0)+6,0)),VLOOKUP($C20,[1]BXIP!$E$2:$CD$304,MATCH($E20,[1]BXIP!$K$1:$CD$1,0)+6,0),"") ->  | CA20: =IF(ISNUMBER(VLOOKUP($C20,[1]BMIP!$E$2:$CD$304,MATCH($E20,[1]BXIP!$K$1:$CD$1,0)+6,0)),VLOOKUP($C20,[1]BMIP!$E$2:$CD$304,MATCH($E20,[1]BMIP!$K$1:$CD$1,0)+6,0),"") ->  | CB20: =IF(ISNUMBER(VLOOKUP($C20,[1]PCPI!$E$2:$CE$304,MATCH($E20,[1]PCPI!$K$1:$CE$1,0)+6,0)),VLOOKUP($C20,[1]PCPI!$E$2:$CE$304,MATCH($E20,[1]PCPI!$K$1:$CE$1,0)+6,0),"") -> 27.31794167 | CC20: 0.2603595383 | CD20: =IF(ISNUMBER(VLOOKUP($C20,[1]NGDP_R!$E$2:$CE$304,MATCH($E20,[1]NGDP_R!$K$1:$CE$1,0)+6,0)),VLOOKUP($C20,[1]NGDP_R!$E$2:$CE$304,MATCH($E20,[1]NGDP_R!$K$1:$CE$1,0)+6,0),"") -> 42722.24215
B21: -22 | C21: 228 | D21: Chile | E21: 1991 | F21: =IF(ISNUMBER(VLOOKUP($C21,[1]NGDPD!$E$2:$CE$305,MATCH($E21,[1]NGDPD!$K$1:$CE$1,0)+6,0)),VLOOKUP($C21,[1]NGDPD!$E$2:$CE$305,MATCH($E21,[1]NGDPD!$K$1:$CE$1,0)+6,0),"") -> 37.98141253 | G21: =IF(ISNUMBER(VLOOKUP($C21,[1]BX_WEO!$E$2:$CE$305,MATCH($E21,[1]BX_WEO!$K$1:$CE$1,0)+6,0)),VLOOKUP($C21,[1]BX_WEO!$E$2:$CE$305,MATCH($E21,[1]BX_WEO!$K$1:$CE$1,0)+6,0),"") -> 11.06850001 | H21: =IF(ISNUMBER(VLOOKUP($C21,[1]BM_WEO!$E$2:$CE$304,MATCH($E21,[1]BM_WEO!$K$1:$CE$1,0)+6,0)),VLOOKUP($C21,[1]BM_WEO!$E$2:$CE$304,MATCH($E21,[1]BM_WEO!$K$1:$CE$1,0)+6,0),"") -> 9.550699986 | I21: -243314.9747 | J21: 2605673.46 | K21: 2848988.435 | L21: 1 | BM21: 1991 | BN21: 0.04816303308 | BO21: 0.03996165301 | BP21: =IF(ISNUMBER(VLOOKUP($C21,[1]BIS_WEO!$E$2:$CE$304,MATCH($E21,[1]BIS_WEO!$K$1:$CE$1,0)+6,0)),VLOOKUP($C21,[1]BIS_WEO!$E$2:$CE$304,MATCH($E21,[1]BIS_WEO!$K$1:$CE$1,0)+6,0),"") -> 0.3115 | BQ21: 0.008201380077 | BR21: 24.131 | BS21: 0.6353370872 | BT21: =IF(ISNUMBER(VLOOKUP($C21,[1]IA_BP6!$E$2:$CE$304,MATCH($E21,[1]IA_BP6!$K$1:$CE$1,0)+6,0)),VLOOKUP($C21,[1]IA_BP6!$E$2:$CE$304,MATCH($E21,[1]IA_BP6!$K$1:$CE$1,0)+6,0),"") ->  | BV21: =IF(ISNUMBER(VLOOKUP($C21,[1]IL_BP6!$E$2:$CE$304,MATCH($E21,[1]IL_BP6!$K$1:$CE$1,0)+6,0)),VLOOKUP($C21,[1]IL_BP6!$E$2:$CE$304,MATCH($E21,[1]IL_BP6!$K$1:$CE$1,0)+6,0),"") -> 3.896599259 | BZ21: =IF(ISNUMBER(VLOOKUP($C21,[1]BXIP!$E$2:$CD$304,MATCH($E21,[1]BXIP!$K$1:$CD$1,0)+6,0)),VLOOKUP($C21,[1]BXIP!$E$2:$CD$304,MATCH($E21,[1]BXIP!$K$1:$CD$1,0)+6,0),"") ->  | CA21: =IF(ISNUMBER(VLOOKUP($C21,[1]BMIP!$E$2:$CD$304,MATCH($E21,[1]BXIP!$K$1:$CD$1,0)+6,0)),VLOOKUP($C21,[1]BMIP!$E$2:$CD$304,MATCH($E21,[1]BMIP!$K$1:$CD$1,0)+6,0),"") ->  | CB21: =IF(ISNUMBER(VLOOKUP($C21,[1]PCPI!$E$2:$CE$304,MATCH($E21,[1]PCPI!$K$1:$CE$1,0)+6,0)),VLOOKUP($C21,[1]PCPI!$E$2:$CE$304,MATCH($E21,[1]PCPI!$K$1:$CE$1,0)+6,0),"") -> 33.27740833 | CC21: 0.2181521119 | CD21: =IF(ISNUMBER(VLOOKUP($C21,[1]NGDP_R!$E$2:$CE$304,MATCH($E21,[1]NGDP_R!$K$1:$CE$1,0)+6,0)),VLOOKUP($C21,[1]NGDP_R!$E$2:$CE$304,MATCH($E21,[1]NGDP_R!$K$1:$CE$1,0)+6,0),"") -> 46018.41571
B22: -21 | C22: 228 | D22: Chile | E22: 1992 | F22: =IF(ISNUMBER(VLOOKUP($C22,[1]NGDPD!$E$2:$CE$305,MATCH($E22,[1]NGDPD!$K$1:$CE$1,0)+6,0)),VLOOKUP($C22,[1]NGDPD!$E$2:$CE$305,MATCH($E22,[1]NGDPD!$K$1:$CE$1,0)+6,0),"") -> 46.2709935 | G22: =IF(ISNUMBER(VLOOKUP($C22,[1]BX_WEO!$E$2:$CE$305,MATCH($E22,[1]BX_WEO!$K$1:$CE$1,0)+6,0)),VLOOKUP($C22,[1]BX_WEO!$E$2:$CE$305,MATCH($E22,[1]BX_WEO!$K$1:$CE$1,0)+6,0),"") -> 12.36460001 | H22: =IF(ISNUMBER(VLOOKUP($C22,[1]BM_WEO!$E$2:$CE$304,MATCH($E22,[1]BM_WEO!$K$1:$CE$1,0)+6,0)),VLOOKUP($C22,[1]BM_WEO!$E$2:$CE$304,MATCH($E22,[1]BM_WEO!$K$1:$CE$1,0)+6,0),"") -> 11.81989999 | I22: -432128.235 | J22: 2611230.619 | K22: 3043358.854 | L22: 1 | BM22: 1992 | BN22: 0.01993689692 | BO22: 0.01177195445 | BP22: =IF(ISNUMBER(VLOOKUP($C22,[1]BIS_WEO!$E$2:$CE$304,MATCH($E22,[1]BIS_WEO!$K$1:$CE$1,0)+6,0)),VLOOKUP($C22,[1]BIS_WEO!$E$2:$CE$304,MATCH($E22,[1]BIS_WEO!$K$1:$CE$1,0)+6,0),"") -> 0.3778 | BQ22: 0.008164942471 | BR22: 24.235 | BS22: 0.5237622572 | BT22: =IF(ISNUMBER(VLOOKUP($C22,[1]IA_BP6!$E$2:$CE$304,MATCH($E22,[1]IA_BP6!$K$1:$CE$1,0)+6,0)),VLOOKUP($C22,[1]IA_BP6!$E$2:$CE$304,MATCH($E22,[1]IA_BP6!$K$1:$CE$1,0)+6,0),"") ->  | BV22: =IF(ISNUMBER(VLOOKUP($C22,[1]IL_BP6!$E$2:$CE$304,MATCH($E22,[1]IL_BP6!$K$1:$CE$1,0)+6,0)),VLOOKUP($C22,[1]IL_BP6!$E$2:$CE$304,MATCH($E22,[1]IL_BP6!$K$1:$CE$1,0)+6,0),"") -> 8.2536425 | BZ22: =IF(ISNUMBER(VLOOKUP($C22,[1]BXIP!$E$2:$CD$304,MATCH($E22,[1]BXIP!$K$1:$CD$1,0)+6,0)),VLOOKUP($C22,[1]BXIP!$E$2:$CD$304,MATCH($E22,[1]BXIP!$K$1:$CD$1,0)+6,0),"") ->  | CA22: =IF(ISNUMBER(VLOOKUP($C22,[1]BMIP!$E$2:$CD$304,MATCH($E22,[1]BXIP!$K$1:$CD$1,0)+6,0)),VLOOKUP($C22,[1]BMIP!$E$2:$CD$304,MATCH($E22,[1]BMIP!$K$1:$CD$1,0)+6,0),"") ->  | CB22: =IF(ISNUMBER(VLOOKUP($C22,[1]PCPI!$E$2:$CE$304,MATCH($E22,[1]PCPI!$K$1:$CE$1,0)+6,0)),VLOOKUP($C22,[1]PCPI!$E$2:$CE$304,MATCH($E22,[1]PCPI!$K$1:$CE$1,0)+6,0),"") -> 38.420025 | CC22: 0.1545377758 | CD22: =IF(ISNUMBER(VLOOKUP($C22,[1]NGDP_R!$E$2:$CE$304,MATCH($E22,[1]NGDP_R!$K$1:$CE$1,0)+6,0)),VLOOKUP($C22,[1]NGDP_R!$E$2:$CE$304,MATCH($E22,[1]NGDP_R!$K$1:$CE$1,0)+6,0),"") -> 51141.03046
B23: =B24-1 -> -20 | C23: =$D$3 -> 228 | D23: =$D$2 -> Chile | E23: =+E24-1 -> 1993 | F23: =IF(ISNUMBER(VLOOKUP($C23,[1]NGDPD!$E$2:$CE$305,MATCH($E23,[1]NGDPD!$K$1:$CE$1,0)+6,0)),VLOOKUP($C23,[1]NGDPD!$E$2:$CE$305,MATCH($E23,[1]NGDPD!$K$1:$CE$1,0)+6,0),"") -> 49.5057637 | G23: =IF(ISNUMBER(VLOOKUP($C23,[1]BX_WEO!$E$2:$CE$305,MATCH($E23,[1]BX_WEO!$K$1:$CE$1,0)+6,0)),VLOOKUP($C23,[1]BX_WEO!$E$2:$CE$305,MATCH($E23,[1]BX_WEO!$K$1:$CE$1,0)+6,0),"") -> 11.71120001 | H23: =IF(ISNUMBER(VLOOKUP($C23,[1]BM_WEO!$E$2:$CE$304,MATCH($E23,[1]BM_WEO!$K$1:$CE$1,0)+6,0)),VLOOKUP($C23,[1]BM_WEO!$E$2:$CE$304,MATCH($E23,[1]BM_WEO!$K$1:$CE$1,0)+6,0),"") -> 12.92819999 | I23: -121807.7784 | J23: 3234697.02 | K23: 3356504.798 | L23: 1 | BM23: 1993 | BN23: -0.01812112176 | BO23: -0.02458299562 | BP23: =IF(ISNUMBER(VLOOKUP($C23,[1]BIS_WEO!$E$2:$CE$304,MATCH($E23,[1]BIS_WEO!$K$1:$CE$1,0)+6,0)),VLOOKUP($C23,[1]BIS_WEO!$E$2:$CE$304,MATCH($E23,[1]BIS_WEO!$K$1:$CE$1,0)+6,0),"") -> 0.3199 | BQ23: 0.006461873853 | BR23: 25.317 | BS23: 0.5113949995 | BT23: =IF(ISNUMBER(VLOOKUP($C23,[1]IA_BP6!$E$2:$CE$304,MATCH($E23,[1]IA_BP6!$K$1:$CE$1,0)+6,0)),VLOOKUP($C23,[1]IA_BP6!$E$2:$CE$304,MATCH($E23,[1]IA_BP6!$K$1:$CE$1,0)+6,0),"") ->  | BV23: =IF(ISNUMBER(VLOOKUP($C23,[1]IL_BP6!$E$2:$CE$304,MATCH($E23,[1]IL_BP6!$K$1:$CE$1,0)+6,0)),VLOOKUP($C23,[1]IL_BP6!$E$2:$CE$304,MATCH($E23,[1]IL_BP6!$K$1:$CE$1,0)+6,0),"") -> 7.423902975 | BZ23: =IF(ISNUMBER(VLOOKUP($C23,[1]BXIP!$E$2:$CD$304,MATCH($E23,[1]BXIP!$K$1:$CD$1,0)+6,0)),VLOOKUP($C23,[1]BXIP!$E$2:$CD$304,MATCH($E23,[1]BXIP!$K$1:$CD$1,0)+6,0),"") ->  | CA23: =IF(ISNUMBER(VLOOKUP($C23,[1]BMIP!$E$2:$CD$304,MATCH($E23,[1]BXIP!$K$1:$CD$1,0)+6,0)),VLOOKUP($C23,[1]BMIP!$E$2:$CD$304,MATCH($E23,[1]BMIP!$K$1:$CD$1,0)+6,0),"") ->  | CB23: =IF(ISNUMBER(VLOOKUP($C23,[1]PCPI!$E$2:$CE$304,MATCH($E23,[1]PCPI!$K$1:$CE$1,0)+6,0)),VLOOKUP($C23,[1]PCPI!$E$2:$CE$304,MATCH($E23,[1]PCPI!$K$1:$CE$1,0)+6,0),"") -> 43.31586667 | CC23: 0.1274294243 | CD23: =IF(ISNUMBER(VLOOKUP($C23,[1]NGDP_R!$E$2:$CE$304,MATCH($E23,[1]NGDP_R!$K$1:$CE$1,0)+6,0)),VLOOKUP($C23,[1]NGDP_R!$E$2:$CE$304,MATCH($E23,[1]NGDP_R!$K$1:$CE$1,0)+6,0),"") -> 54578.5485
B24: -19 | C24: =$D$3 -> 228 | D24: =$D$2 -> Chile | E24: 1994 | F24: =IF(ISNUMBER(VLOOKUP($C24,[1]NGDPD!$E$2:$CE$305,MATCH($E24,[1]NGDPD!$K$1:$CE$1,0)+6,0)),VLOOKUP($C24,[1]NGDPD!$E$2:$CE$305,MATCH($E24,[1]NGDPD!$K$1:$CE$1,0)+6,0),"") -> 57.11434187 | G24: =IF(ISNUMBER(VLOOKUP($C24,[1]BX_WEO!$E$2:$CE$305,MATCH($E24,[1]BX_WEO!$K$1:$CE$1,0)+6,0)),VLOOKUP($C24,[1]BX_WEO!$E$2:$CE$305,MATCH($E24,[1]BX_WEO!$K$1:$CE$1,0)+6,0),"") -> 14.44380001 | H24: =IF(ISNUMBER(VLOOKUP($C24,[1]BM_WEO!$E$2:$CE$304,MATCH($E24,[1]BM_WEO!$K$1:$CE$1,0)+6,0)),VLOOKUP($C24,[1]BM_WEO!$E$2:$CE$304,MATCH($E24,[1]BM_WEO!$K$1:$CE$1,0)+6,0),"") -> 13.86099999 | I24: -110310.7036 | J24: 3434636.875 | K24: 3544947.579 | L24: 1 | BM24: 1994 | BN24: 0.01600473713 | BO24: 0.01020409251 | BP24: =IF(ISNUMBER(VLOOKUP($C24,[1]BIS_WEO!$E$2:$CE$304,MATCH($E24,[1]BIS_WEO!$K$1:$CE$1,0)+6,0)),VLOOKUP($C24,[1]BIS_WEO!$E$2:$CE$304,MATCH($E24,[1]BIS_WEO!$K$1:$CE$1,0)+6,0),"") -> 0.3313 | BQ24: 0.005800644622 | BR24: 17.147 | BS24: 0.3002223161 | BT24: =IF(ISNUMBER(VLOOKUP($C24,[1]IA_BP6!$E$2:$CE$304,MATCH($E24,[1]IA_BP6!$K$1:$CE$1,0)+6,0)),VLOOKUP($C24,[1]IA_BP6!$E$2:$CE$304,MATCH($E24,[1]IA_BP6!$K$1:$CE$1,0)+6,0),"") ->  | BV24: =IF(ISNUMBER(VLOOKUP($C24,[1]IL_BP6!$E$2:$CE$304,MATCH($E24,[1]IL_BP6!$K$1:$CE$1,0)+6,0)),VLOOKUP($C24,[1]IL_BP6!$E$2:$CE$304,MATCH($E24,[1]IL_BP6!$K$1:$CE$1,0)+6,0),"") -> 7.246100378 | BZ24: =IF(ISNUMBER(VLOOKUP($C24,[1]BXIP!$E$2:$CD$304,MATCH($E24,[1]BXIP!$K$1:$CD$1,0)+6,0)),VLOOKUP($C24,[1]BXIP!$E$2:$CD$304,MATCH($E24,[1]BXIP!$K$1:$CD$1,0)+6,0),"") ->  | CA24: =IF(ISNUMBER(VLOOKUP($C24,[1]BMIP!$E$2:$CD$304,MATCH($E24,[1]BXIP!$K$1:$CD$1,0)+6,0)),VLOOKUP($C24,[1]BMIP!$E$2:$CD$304,MATCH($E24,[1]BMIP!$K$1:$CD$1,0)+6,0),"") ->  | CB24: =IF(ISNUMBER(VLOOKUP($C24,[1]PCPI!$E$2:$CE$304,MATCH($E24,[1]PCPI!$K$1:$CE$1,0)+6,0)),VLOOKUP($C24,[1]PCPI!$E$2:$CE$304,MATCH($E24,[1]PCPI!$K$1:$CE$1,0)+6,0),"") -> 48.28005 | CC24: 0.1146042713 | CD24: =IF(ISNUMBER(VLOOKUP($C24,[1]NGDP_R!$E$2:$CE$304,MATCH($E24,[1]NGDP_R!$K$1:$CE$1,0)+6,0)),VLOOKUP($C24,[1]NGDP_R!$E$2:$CE$304,MATCH($E24,[1]NGDP_R!$K$1:$CE$1,0)+6,0),"") -> 57341.08298
B25: -18 | C25: 228 | D25: Chile | E25: 1995 | F25: =IF(ISNUMBER(VLOOKUP($C25,[1]NGDPD!$E$2:$CE$305,MATCH($E25,[1]NGDPD!$K$1:$CE$1,0)+6,0)),VLOOKUP($C25,[1]NGDPD!$E$2:$CE$305,MATCH($E25,[1]NGDPD!$K$1:$CE$1,0)+6,0),"") -> 73.60015831 | G25: =IF(ISNUMBER(VLOOKUP($C25,[1]BX_WEO!$E$2:$CE$305,MATCH($E25,[1]BX_WEO!$K$1:$CE$1,0)+6,0)),VLOOKUP($C25,[1]BX_WEO!$E$2:$CE$305,MATCH($E25,[1]BX_WEO!$K$1:$CE$1,0)+6,0),"") -> 19.35890001 | H25: =IF(ISNUMBER(VLOOKUP($C25,[1]BM_WEO!$E$2:$CE$304,MATCH($E25,[1]BM_WEO!$K$1:$CE$1,0)+6,0)),VLOOKUP($C25,[1]BM_WEO!$E$2:$CE$304,MATCH($E25,[1]BM_WEO!$K$1:$CE$1,0)+6,0),"") -> 18.29859999 | I25: -277567.317 | J25: 4094374.785 | K25: 4371942.102 | L25: 1 | BM25: 1995 | BN25: 0.01857740607 | BO25: 0.01440621939 | BP25: =IF(ISNUMBER(VLOOKUP($C25,[1]BIS_WEO!$E$2:$CE$304,MATCH($E25,[1]BIS_WEO!$K$1:$CE$1,0)+6,0)),VLOOKUP($C25,[1]BIS_WEO!$E$2:$CE$304,MATCH($E25,[1]BIS_WEO!$K$1:$CE$1,0)+6,0),"") -> 0.307 | BQ25: 0.00417118668 | BR25: 20.891 | BS25: 0.2838444982 | BT25: =IF(ISNUMBER(VLOOKUP($C25,[1]IA_BP6!$E$2:$CE$304,MATCH($E25,[1]IA_BP6!$K$1:$CE$1,0)+6,0)),VLOOKUP($C25,[1]IA_BP6!$E$2:$CE$304,MATCH($E25,[1]IA_BP6!$K$1:$CE$1,0)+6,0),"") ->  | BV25: =IF(ISNUMBER(VLOOKUP($C25,[1]IL_BP6!$E$2:$CE$304,MATCH($E25,[1]IL_BP6!$K$1:$CE$1,0)+6,0)),VLOOKUP($C25,[1]IL_BP6!$E$2:$CE$304,MATCH($E25,[1]IL_BP6!$K$1:$CE$1,0)+6,0),"") -> 6.071238807 | BZ25: =IF(ISNUMBER(VLOOKUP($C25,[1]BXIP!$E$2:$CD$304,MATCH($E25,[1]BXIP!$K$1:$CD$1,0)+6,0)),VLOOKUP($C25,[1]BXIP!$E$2:$CD$304,MATCH($E25,[1]BXIP!$K$1:$CD$1,0)+6,0),"") ->  | CA25: =IF(ISNUMBER(VLOOKUP($C25,[1]BMIP!$E$2:$CD$304,MATCH($E25,[1]BXIP!$K$1:$CD$1,0)+6,0)),VLOOKUP($C25,[1]BMIP!$E$2:$CD$304,MATCH($E25,[1]BMIP!$K$1:$CD$1,0)+6,0),"") ->  | CB25: =IF(ISNUMBER(VLOOKUP($C25,[1]PCPI!$E$2:$CE$304,MATCH($E25,[1]PCPI!$K$1:$CE$1,0)+6,0)),VLOOKUP($C25,[1]PCPI!$E$2:$CE$304,MATCH($E25,[1]PCPI!$K$1:$CE$1,0)+6,0),"") -> 52.25311667 | CC25: 0.08229209926 | CD25: =IF(ISNUMBER(VLOOKUP($C25,[1]NGDP_R!$E$2:$CE$304,MATCH($E25,[1]NGDP_R!$K$1:$CE$1,0)+6,0)),VLOOKUP($C25,[1]NGDP_R!$E$2:$CE$304,MATCH($E25,[1]NGDP_R!$K$1:$CE$1,0)+6,0),"") -> 62412.53886
B26: -17 | C26: 228 | D26: Chile | E26: 1996 | F26: =IF(ISNUMBER(VLOOKUP($C26,[1]NGDPD!$E$2:$CE$305,MATCH($E26,[1]NGDPD!$K$1:$CE$1,0)+6,0)),VLOOKUP($C26,[1]NGDPD!$E$2:$CE$305,MATCH($E26,[1]NGDPD!$K$1:$CE$1,0)+6,0),"") -> 78.02474127 | G26: =IF(ISNUMBER(VLOOKUP($C26,[1]BX_WEO!$E$2:$CE$305,MATCH($E26,[1]BX_WEO!$K$1:$CE$1,0)+6,0)),VLOOKUP($C26,[1]BX_WEO!$E$2:$CE$305,MATCH($E26,[1]BX_WEO!$K$1:$CE$1,0)+6,0),"") -> 20.2149 | H26: =IF(ISNUMBER(VLOOKUP($C26,[1]BM_WEO!$E$2:$CE$304,MATCH($E26,[1]BM_WEO!$K$1:$CE$1,0)+6,0)),VLOOKUP($C26,[1]BM_WEO!$E$2:$CE$304,MATCH($E26,[1]BM_WEO!$K$1:$CE$1,0)+6,0),"") -> 21.2874 | I26: -328306.2791 | J26: 4791796.049 | K26: 5120102.328 | L26: 1 | BM26: 1996 | BN26: -0.007241292836 | BO26: -0.01374563994 | BP26: =IF(ISNUMBER(VLOOKUP($C26,[1]BIS_WEO!$E$2:$CE$304,MATCH($E26,[1]BIS_WEO!$K$1:$CE$1,0)+6,0)),VLOOKUP($C26,[1]BIS_WEO!$E$2:$CE$304,MATCH($E26,[1]BIS_WEO!$K$1:$CE$1,0)+6,0),"") -> 0.5075 | BQ26: 0.006504347105 | BR26: 22.315 | BS26: 0.2859990259 | BT26: =IF(ISNUMBER(VLOOKUP($C26,[1]IA_BP6!$E$2:$CE$304,MATCH($E26,[1]IA_BP6!$K$1:$CE$1,0)+6,0)),VLOOKUP($C26,[1]IA_BP6!$E$2:$CE$304,MATCH($E26,[1]IA_BP6!$K$1:$CE$1,0)+6,0),"") -> 16.25837305 | BU26: =BT26/(F26) -> 0.2083745846 | BV26: =IF(ISNUMBER(VLOOKUP($C26,[1]IL_BP6!$E$2:$CE$304,MATCH($E26,[1]IL_BP6!$K$1:$CE$1,0)+6,0)),VLOOKUP($C26,[1]IL_BP6!$E$2:$CE$304,MATCH($E26,[1]IL_BP6!$K$1:$CE$1,0)+6,0),"") -> 27.95952184 | BZ26: ='[2]Chile Raw Data and Sources'!B60 -> 0.5603 | CA26: ='[2]Chile Raw Data and Sources'!C60 -> 3.0639 | CB26: =IF(ISNUMBER(VLOOKUP($C26,[1]PCPI!$E$2:$CE$304,MATCH($E26,[1]PCPI!$K$1:$CE$1,0)+6,0)),VLOOKUP($C26,[1]PCPI!$E$2:$CE$304,MATCH($E26,[1]PCPI!$K$1:$CE$1,0)+6,0),"") -> 56.09689167 | CC26: 0.07356068394 | CD26: =IF(ISNUMBER(VLOOKUP($C26,[1]NGDP_R!$E$2:$CE$304,MATCH($E26,[1]NGDP_R!$K$1:$CE$1,0)+6,0)),VLOOKUP($C26,[1]NGDP_R!$E$2:$CE$304,MATCH($E26,[1]NGDP_R!$K$1:$CE$1,0)+6,0),"") -> 66646
B27: -16 | C27: 228 | D27: Chile | E27: 1997 | F27: =IF(ISNUMBER(VLOOKUP($C27,[1]NGDPD!$E$2:$CE$305,MATCH($E27,[1]NGDPD!$K$1:$CE$1,0)+6,0)),VLOOKUP($C27,[1]NGDPD!$E$2:$CE$305,MATCH($E27,[1]NGDPD!$K$1:$CE$1,0)+6,0),"") -> 84.92386211 | G27: =IF(ISNUMBER(VLOOKUP($C27,[1]BX_WEO!$E$2:$CE$305,MATCH($E27,[1]BX_WEO!$K$1:$CE$1,0)+6,0)),VLOOKUP($C27,[1]BX_WEO!$E$2:$CE$305,MATCH($E27,[1]BX_WEO!$K$1:$CE$1,0)+6,0),"") -> 21.7622 | H27: =IF(ISNUMBER(VLOOKUP($C27,[1]BM_WEO!$E$2:$CE$304,MATCH($E27,[1]BM_WEO!$K$1:$CE$1,0)+6,0)),VLOOKUP($C27,[1]BM_WEO!$E$2:$CE$304,MATCH($E27,[1]BM_WEO!$K$1:$CE$1,0)+6,0),"") -> 23.3253 | I27: -788224.7676 | J27: 5536513.923 | K27: 6324738.691 | L27: 1 | BM27: 1997 | BN27: -0.01227923429 | BO27: -0.01840589866 | BP27: =IF(ISNUMBER(VLOOKUP($C27,[1]BIS_WEO!$E$2:$CE$304,MATCH($E27,[1]BIS_WEO!$K$1:$CE$1,0)+6,0)),VLOOKUP($C27,[1]BIS_WEO!$E$2:$CE$304,MATCH($E27,[1]BIS_WEO!$K$1:$CE$1,0)+6,0),"") -> 0.5203 | BQ27: 0.006126664369 | BR27: 12.61 | BS27: 0.148485946 | BT27: =IF(ISNUMBER(VLOOKUP($C27,[1]IA_BP6!$E$2:$CE$304,MATCH($E27,[1]IA_BP6!$K$1:$CE$1,0)+6,0)),VLOOKUP($C27,[1]IA_BP6!$E$2:$CE$304,MATCH($E27,[1]IA_BP6!$K$1:$CE$1,0)+6,0),"") -> 32.13404682 | BU27: 0.3783865455 | BV27: =IF(ISNUMBER(VLOOKUP($C27,[1]IL_BP6!$E$2:$CE$304,MATCH($E27,[1]IL_BP6!$K$1:$CE$1,0)+6,0)),VLOOKUP($C27,[1]IL_BP6!$E$2:$CE$304,MATCH($E27,[1]IL_BP6!$K$1:$CE$1,0)+6,0),"") -> 67.13790762 | BZ27: ='[2]Chile Raw Data and Sources'!B61 -> 0.8107 | CA27: ='[2]Chile Raw Data and Sources'!C61 -> 3.4072 | CB27: =IF(ISNUMBER(VLOOKUP($C27,[1]PCPI!$E$2:$CE$304,MATCH($E27,[1]PCPI!$K$1:$CE$1,0)+6,0)),VLOOKUP($C27,[1]PCPI!$E$2:$CE$304,MATCH($E27,[1]PCPI!$K$1:$CE$1,0)+6,0),"") -> 59.53376667 | CC27: 0.06126676359 | CD27: =IF(ISNUMBER(VLOOKUP($C27,[1]NGDP_R!$E$2:$CE$304,MATCH($E27,[1]NGDP_R!$K$1:$CE$1,0)+6,0)),VLOOKUP($C27,[1]NGDP_R!$E$2:$CE$304,MATCH($E27,[1]NGDP_R!$K$1:$CE$1,0)+6,0),"") -> 71570
B28: -15 | C28: 228 | D28: Chile | E28: 1998 | F28: =IF(ISNUMBER(VLOOKUP($C28,[1]NGDPD!$E$2:$CE$305,MATCH($E28,[1]NGDPD!$K$1:$CE$1,0)+6,0)),VLOOKUP($C28,[1]NGDPD!$E$2:$CE$305,MATCH($E28,[1]NGDPD!$K$1:$CE$1,0)+6,0),"") -> 81.5903104 | G28: =IF(ISNUMBER(VLOOKUP($C28,[1]BX_WEO!$E$2:$CE$305,MATCH($E28,[1]BX_WEO!$K$1:$CE$1,0)+6,0)),VLOOKUP($C28,[1]BX_WEO!$E$2:$CE$305,MATCH($E28,[1]BX_WEO!$K$1:$CE$1,0)+6,0),"") -> 20.2747 | H28: =IF(ISNUMBER(VLOOKUP($C28,[1]BM_WEO!$E$2:$CE$304,MATCH($E28,[1]BM_WEO!$K$1:$CE$1,0)+6,0)),VLOOKUP($C28,[1]BM_WEO!$E$2:$CE$304,MATCH($E28,[1]BM_WEO!$K$1:$CE$1,0)+6,0),"") -> 22.7669 | I28: -1033774.683 | J28: 6368620.002 | K28: 7402394.685 | L28: 1 | BM28: 1998 | BN28: -0.02487795413 | BO28: -0.03054529377 | BP28: =IF(ISNUMBER(VLOOKUP($C28,[1]BIS_WEO!$E$2:$CE$304,MATCH($E28,[1]BIS_WEO!$K$1:$CE$1,0)+6,0)),VLOOKUP($C28,[1]BIS_WEO!$E$2:$CE$304,MATCH($E28,[1]BIS_WEO!$K$1:$CE$1,0)+6,0),"") -> 0.4624 | BQ28: 0.005667339635 | BR28: 4.264 | BS28: 0.05226110771 | BT28: =IF(ISNUMBER(VLOOKUP($C28,[1]IA_BP6!$E$2:$CE$304,MATCH($E28,[1]IA_BP6!$K$1:$CE$1,0)+6,0)),VLOOKUP($C28,[1]IA_BP6!$E$2:$CE$304,MATCH($E28,[1]IA_BP6!$K$1:$CE$1,0)+6,0),"") -> 36.81510552 | BU28: 0.4512190888 | BV28: =IF(ISNUMBER(VLOOKUP($C28,[1]IL_BP6!$E$2:$CE$304,MATCH($E28,[1]IL_BP6!$K$1:$CE$1,0)+6,0)),VLOOKUP($C28,[1]IL_BP6!$E$2:$CE$304,MATCH($E28,[1]IL_BP6!$K$1:$CE$1,0)+6,0),"") -> 71.75928707 | BZ28: ='[2]Chile Raw Data and Sources'!B62 -> 0.8268 | CA28: ='[2]Chile Raw Data and Sources'!C62 -> 2.6998 | CB28: =IF(ISNUMBER(VLOOKUP($C28,[1]PCPI!$E$2:$CE$304,MATCH($E28,[1]PCPI!$K$1:$CE$1,0)+6,0)),VLOOKUP($C28,[1]PCPI!$E$2:$CE$304,MATCH($E28,[1]PCPI!$K$1:$CE$1,0)+6,0),"") -> 62.5733 | CC28: 0.05105561942 | CD28: =IF(ISNUMBER(VLOOKUP($C28,[1]NGDP_R!$E$2:$CE$304,MATCH($E28,[1]NGDP_R!$K$1:$CE$1,0)+6,0)),VLOOKUP($C28,[1]NGDP_R!$E$2:$CE$304,MATCH($E28,[1]NGDP_R!$K$1:$CE$1,0)+6,0),"") -> 74763
B29: -14 | C29: 228 | D29: Chile | E29: 1999 | F29: =IF(ISNUMBER(VLOOKUP($C29,[1]NGDPD!$E$2:$CE$305,MATCH($E29,[1]NGDPD!$K$1:$CE$1,0)+6,0)),VLOOKUP($C29,[1]NGDPD!$E$2:$CE$305,MATCH($E29,[1]NGDPD!$K$1:$CE$1,0)+6,0),"") -> 75.12075435 | G29: =IF(ISNUMBER(VLOOKUP($C29,[1]BX_WEO!$E$2:$CE$305,MATCH($E29,[1]BX_WEO!$K$1:$CE$1,0)+6,0)),VLOOKUP($C29,[1]BX_WEO!$E$2:$CE$305,MATCH($E29,[1]BX_WEO!$K$1:$CE$1,0)+6,0),"") -> 21.0314 | H29: =IF(ISNUMBER(VLOOKUP($C29,[1]BM_WEO!$E$2:$CE$304,MATCH($E29,[1]BM_WEO!$K$1:$CE$1,0)+6,0)),VLOOKUP($C29,[1]BM_WEO!$E$2:$CE$304,MATCH($E29,[1]BM_WEO!$K$1:$CE$1,0)+6,0),"") -> 19.3413 | I29: -1002236.22 | J29: 7611474.434 | K29: 8613710.654 | L29: 1 | BM29: 1999 | BN29: 0.03105133888 | BO29: 0.02249844287 | BP29: =IF(ISNUMBER(VLOOKUP($C29,[1]BIS_WEO!$E$2:$CE$304,MATCH($E29,[1]BIS_WEO!$K$1:$CE$1,0)+6,0)),VLOOKUP($C29,[1]BIS_WEO!$E$2:$CE$304,MATCH($E29,[1]BIS_WEO!$K$1:$CE$1,0)+6,0),"") -> 0.6425 | BQ29: 0.008552896008 | BR29: 11.94 | BS29: 0.1589440908 | BT29: =IF(ISNUMBER(VLOOKUP($C29,[1]IA_BP6!$E$2:$CE$304,MATCH($E29,[1]IA_BP6!$K$1:$CE$1,0)+6,0)),VLOOKUP($C29,[1]IA_BP6!$E$2:$CE$304,MATCH($E29,[1]IA_BP6!$K$1:$CE$1,0)+6,0),"") -> 46.69852982 | BU29: 0.6216461778 | BV29: =IF(ISNUMBER(VLOOKUP($C29,[1]IL_BP6!$E$2:$CE$304,MATCH($E29,[1]IL_BP6!$K$1:$CE$1,0)+6,0)),VLOOKUP($C29,[1]IL_BP6!$E$2:$CE$304,MATCH($E29,[1]IL_BP6!$K$1:$CE$1,0)+6,0),"") -> 80.39762214 | BZ29: ='[2]Chile Raw Data and Sources'!B63 -> 0.5103 | CA29: ='[2]Chile Raw Data and Sources'!C63 -> 2.7289 | CB29: =IF(ISNUMBER(VLOOKUP($C29,[1]PCPI!$E$2:$CE$304,MATCH($E29,[1]PCPI!$K$1:$CE$1,0)+6,0)),VLOOKUP($C29,[1]PCPI!$E$2:$CE$304,MATCH($E29,[1]PCPI!$K$1:$CE$1,0)+6,0),"") -> 64.65904167 | CC29: 0.03333277399 | CD29: =IF(ISNUMBER(VLOOKUP($C29,[1]NGDP_R!$E$2:$CE$304,MATCH($E29,[1]NGDP_R!$K$1:$CE$1,0)+6,0)),VLOOKUP($C29,[1]NGDP_R!$E$2:$CE$304,MATCH($E29,[1]NGDP_R!$K$1:$CE$1,0)+6,0),"") -> 74377
B30: -13 | C30: 228 | D30: Chile | E30: 2000 | F30: =IF(ISNUMBER(VLOOKUP($C30,[1]NGDPD!$E$2:$CE$305,MATCH($E30,[1]NGDPD!$K$1:$CE$1,0)+6,0)),VLOOKUP($C30,[1]NGDPD!$E$2:$CE$305,MATCH($E30,[1]NGDPD!$K$1:$CE$1,0)+6,0),"") -> 77.82523336 | G30: =IF(ISNUMBER(VLOOKUP($C30,[1]BX_WEO!$E$2:$CE$305,MATCH($E30,[1]BX_WEO!$K$1:$CE$1,0)+6,0)),VLOOKUP($C30,[1]BX_WEO!$E$2:$CE$305,MATCH($E30,[1]BX_WEO!$K$1:$CE$1,0)+6,0),"") -> 23.2932 | H30: =IF(ISNUMBER(VLOOKUP($C30,[1]BM_WEO!$E$2:$CE$304,MATCH($E30,[1]BM_WEO!$K$1:$CE$1,0)+6,0)),VLOOKUP($C30,[1]BM_WEO!$E$2:$CE$304,MATCH($E30,[1]BM_WEO!$K$1:$CE$1,0)+6,0),"") -> 21.8932 | I30: =IF(AND(ISNUMBER(J30),ISNUMBER(K30)),J30-K30,"") -> -1536826.495 | J30: 7641747.152 | K30: 9178573.647 | L30: 1 | BM30: 2000 | BN30: 0.02515893516 | BO30: 0.01798902412 | BP30: =IF(ISNUMBER(VLOOKUP($C30,[1]BIS_WEO!$E$2:$CE$304,MATCH($E30,[1]BIS_WEO!$K$1:$CE$1,0)+6,0)),VLOOKUP($C30,[1]BIS_WEO!$E$2:$CE$304,MATCH($E30,[1]BIS_WEO!$K$1:$CE$1,0)+6,0),"") -> 0.558 | BQ30: 0.007169911042 | BR30: 19.179 | BS30: 0.2464367811 | BT30: =IF(ISNUMBER(VLOOKUP($C30,[1]IA_BP6!$E$2:$CE$304,MATCH($E30,[1]IA_BP6!$K$1:$CE$1,0)+6,0)),VLOOKUP($C30,[1]IA_BP6!$E$2:$CE$304,MATCH($E30,[1]IA_BP6!$K$1:$CE$1,0)+6,0),"") -> 47.00676413 | BU30: 0.6040041527 | BV30: =IF(ISNUMBER(VLOOKUP($C30,[1]IL_BP6!$E$2:$CE$304,MATCH($E30,[1]IL_BP6!$K$1:$CE$1,0)+6,0)),VLOOKUP($C30,[1]IL_BP6!$E$2:$CE$304,MATCH($E30,[1]IL_BP6!$K$1:$CE$1,0)+6,0),"") -> 82.37746058 | BZ30: ='[2]Chile Raw Data and Sources'!B64 -> 1.0942 | CA30: ='[2]Chile Raw Data and Sources'!C64 -> 3.9475 | CB30: =IF(ISNUMBER(VLOOKUP($C30,[1]PCPI!$E$2:$CE$304,MATCH($E30,[1]PCPI!$K$1:$CE$1,0)+6,0)),VLOOKUP($C30,[1]PCPI!$E$2:$CE$304,MATCH($E30,[1]PCPI!$K$1:$CE$1,0)+6,0),"") -> 67.1408 | CC30: 0.03838223193 | CD30: =IF(ISNUMBER(VLOOKUP($C30,[1]NGDP_R!$E$2:$CE$304,MATCH($E30,[1]NGDP_R!$K$1:$CE$1,0)+6,0)),VLOOKUP($C30,[1]NGDP_R!$E$2:$CE$304,MATCH($E30,[1]NGDP_R!$K$1:$CE$1,0)+6,0),"") -> 78352
B31: -12 | C31: 228 | D31: Chile | E31: 2001 | F31: =IF(ISNUMBER(VLOOKUP($C31,[1]NGDPD!$E$2:$CE$305,MATCH($E31,[1]NGDPD!$K$1:$CE$1,0)+6,0)),VLOOKUP($C31,[1]NGDPD!$E$2:$CE$305,MATCH($E31,[1]NGDPD!$K$1:$CE$1,0)+6,0),"") -> 70.96752178 | G31: =IF(ISNUMBER(VLOOKUP($C31,[1]BX_WEO!$E$2:$CE$305,MATCH($E31,[1]BX_WEO!$K$1:$CE$1,0)+6,0)),VLOOKUP($C31,[1]BX_WEO!$E$2:$CE$305,MATCH($E31,[1]BX_WEO!$K$1:$CE$1,0)+6,0),"") -> 22.4104 | H31: =IF(ISNUMBER(VLOOKUP($C31,[1]BM_WEO!$E$2:$CE$304,MATCH($E31,[1]BM_WEO!$K$1:$CE$1,0)+6,0)),VLOOKUP($C31,[1]BM_WEO!$E$2:$CE$304,MATCH($E31,[1]BM_WEO!$K$1:$CE$1,0)+6,0),"") -> 21.411 | I31: -2295049.704 | J31: 7170013.682 | K31: 9465063.386 | L31: 1 | BM31: 2001 | BN31: 0.02009651689 | BO31: 0.01408249823 | BP31: =IF(ISNUMBER(VLOOKUP($C31,[1]BIS_WEO!$E$2:$CE$304,MATCH($E31,[1]BIS_WEO!$K$1:$CE$1,0)+6,0)),VLOOKUP($C31,[1]BIS_WEO!$E$2:$CE$304,MATCH($E31,[1]BIS_WEO!$K$1:$CE$1,0)+6,0),"") -> 0.4268 | BQ31: 0.006014018657 | BR31: 29.728 | BS31: 0.4188958449 | BT31: =IF(ISNUMBER(VLOOKUP($C31,[1]IA_BP6!$E$2:$CE$304,MATCH($E31,[1]IA_BP6!$K$1:$CE$1,0)+6,0)),VLOOKUP($C31,[1]IA_BP6!$E$2:$CE$304,MATCH($E31,[1]IA_BP6!$K$1:$CE$1,0)+6,0),"") -> 47.24522543 | BU31: 0.6657302418 | BV31: =IF(ISNUMBER(VLOOKUP($C31,[1]IL_BP6!$E$2:$CE$304,MATCH($E31,[1]IL_BP6!$K$1:$CE$1,0)+6,0)),VLOOKUP($C31,[1]IL_BP6!$E$2:$CE$304,MATCH($E31,[1]IL_BP6!$K$1:$CE$1,0)+6,0),"") -> 81.37106562 | BZ31: ='[2]Chile Raw Data and Sources'!B65 -> 0.9197 | CA31: ='[2]Chile Raw Data and Sources'!C65 -> 3.4421 | CB31: =IF(ISNUMBER(VLOOKUP($C31,[1]PCPI!$E$2:$CE$304,MATCH($E31,[1]PCPI!$K$1:$CE$1,0)+6,0)),VLOOKUP($C31,[1]PCPI!$E$2:$CE$304,MATCH($E31,[1]PCPI!$K$1:$CE$1,0)+6,0),"") -> 69.53438333 | CC31: 0.03565020574 | CD31: =IF(ISNUMBER(VLOOKUP($C31,[1]NGDP_R!$E$2:$CE$304,MATCH($E31,[1]NGDP_R!$K$1:$CE$1,0)+6,0)),VLOOKUP($C31,[1]NGDP_R!$E$2:$CE$304,MATCH($E31,[1]NGDP_R!$K$1:$CE$1,0)+6,0),"") -> 80948
B32: -11 | C32: 228 | D32: Chile | E32: 2002 | F32: =IF(ISNUMBER(VLOOKUP($C32,[1]NGDPD!$E$2:$CE$305,MATCH($E32,[1]NGDPD!$K$1:$CE$1,0)+6,0)),VLOOKUP($C32,[1]NGDPD!$E$2:$CE$305,MATCH($E32,[1]NGDPD!$K$1:$CE$1,0)+6,0),"") -> 69.7291962 | G32: =IF(ISNUMBER(VLOOKUP($C32,[1]BX_WEO!$E$2:$CE$305,MATCH($E32,[1]BX_WEO!$K$1:$CE$1,0)+6,0)),VLOOKUP($C32,[1]BX_WEO!$E$2:$CE$305,MATCH($E32,[1]BX_WEO!$K$1:$CE$1,0)+6,0),"") -> 22.5653 | H32: =IF(ISNUMBER(VLOOKUP($C32,[1]BM_WEO!$E$2:$CE$304,MATCH($E32,[1]BM_WEO!$K$1:$CE$1,0)+6,0)),VLOOKUP($C32,[1]BM_WEO!$E$2:$CE$304,MATCH($E32,[1]BM_WEO!$K$1:$CE$1,0)+6,0),"") -> 20.8812 | I32: -2410951.674 | J32: 7065176.335 | K32: 9476128.009 | L32: 1 | BM32: 2002 | BN32: 0.03250575259 | BO32: 0.0241520065 | BP32: =IF(ISNUMBER(VLOOKUP($C32,[1]BIS_WEO!$E$2:$CE$304,MATCH($E32,[1]BIS_WEO!$K$1:$CE$1,0)+6,0)),VLOOKUP($C32,[1]BIS_WEO!$E$2:$CE$304,MATCH($E32,[1]BIS_WEO!$K$1:$CE$1,0)+6,0),"") -> 0.5825 | BQ32: 0.008353746088 | BR32: 25.179 | BS32: 0.3610969489 | BT32: =IF(ISNUMBER(VLOOKUP($C32,[1]IA_BP6!$E$2:$CE$304,MATCH($E32,[1]IA_BP6!$K$1:$CE$1,0)+6,0)),VLOOKUP($C32,[1]IA_BP6!$E$2:$CE$304,MATCH($E32,[1]IA_BP6!$K$1:$CE$1,0)+6,0),"") -> 49.83862133 | BU32: 0.7147453871 | BV32: =IF(ISNUMBER(VLOOKUP($C32,[1]IL_BP6!$E$2:$CE$304,MATCH($E32,[1]IL_BP6!$K$1:$CE$1,0)+6,0)),VLOOKUP($C32,[1]IL_BP6!$E$2:$CE$304,MATCH($E32,[1]IL_BP6!$K$1:$CE$1,0)+6,0),"") -> 81.0712973 | BZ32: ='[2]Chile Raw Data and Sources'!B66 -> 0.3906 | CA32: ='[2]Chile Raw Data and Sources'!C66 -> 3.2338 | CB32: =IF(ISNUMBER(VLOOKUP($C32,[1]PCPI!$E$2:$CE$304,MATCH($E32,[1]PCPI!$K$1:$CE$1,0)+6,0)),VLOOKUP($C32,[1]PCPI!$E$2:$CE$304,MATCH($E32,[1]PCPI!$K$1:$CE$1,0)+6,0),"") -> 71.26291667 | CC32: 0.02485868502 | CD32: =IF(ISNUMBER(VLOOKUP($C32,[1]NGDP_R!$E$2:$CE$304,MATCH($E32,[1]NGDP_R!$K$1:$CE$1,0)+6,0)),VLOOKUP($C32,[1]NGDP_R!$E$2:$CE$304,MATCH($E32,[1]NGDP_R!$K$1:$CE$1,0)+6,0),"") -> 83459
B33: -10 | C33: 228 | D33: Chile | E33: 2003 | F33: =IF(ISNUMBER(VLOOKUP($C33,[1]NGDPD!$E$2:$CE$305,MATCH($E33,[1]NGDPD!$K$1:$CE$1,0)+6,0)),VLOOKUP($C33,[1]NGDPD!$E$2:$CE$305,MATCH($E33,[1]NGDPD!$K$1:$CE$1,0)+6,0),"") -> 75.64389515 | G33: =IF(ISNUMBER(VLOOKUP($C33,[1]BX_WEO!$E$2:$CE$305,MATCH($E33,[1]BX_WEO!$K$1:$CE$1,0)+6,0)),VLOOKUP($C33,[1]BX_WEO!$E$2:$CE$305,MATCH($E33,[1]BX_WEO!$K$1:$CE$1,0)+6,0),"") -> 26.729 | H33: =IF(ISNUMBER(VLOOKUP($C33,[1]BM_WEO!$E$2:$CE$304,MATCH($E33,[1]BM_WEO!$K$1:$CE$1,0)+6,0)),VLOOKUP($C33,[1]BM_WEO!$E$2:$CE$304,MATCH($E33,[1]BM_WEO!$K$1:$CE$1,0)+6,0),"") -> 22.859 | I33: -2293013.318 | J33: 8620933.236 | K33: 10913946.55 | L33: 1 | BM33: 2003 | BN33: 0.05915877271 | BO33: 0.05116077103 | BP33: =IF(ISNUMBER(VLOOKUP($C33,[1]BIS_WEO!$E$2:$CE$304,MATCH($E33,[1]BIS_WEO!$K$1:$CE$1,0)+6,0)),VLOOKUP($C33,[1]BIS_WEO!$E$2:$CE$304,MATCH($E33,[1]BIS_WEO!$K$1:$CE$1,0)+6,0),"") -> 0.605 | BQ33: 0.007998001673 | BR33: 42.754 | BS33: 0.5652009315 | BT33: =IF(ISNUMBER(VLOOKUP($C33,[1]IA_BP6!$E$2:$CE$304,MATCH($E33,[1]IA_BP6!$K$1:$CE$1,0)+6,0)),VLOOKUP($C33,[1]IA_BP6!$E$2:$CE$304,MATCH($E33,[1]IA_BP6!$K$1:$CE$1,0)+6,0),"") -> 60.9984308 | BU33: 0.8063893415 | BV33: =IF(ISNUMBER(VLOOKUP($C33,[1]IL_BP6!$E$2:$CE$304,MATCH($E33,[1]IL_BP6!$K$1:$CE$1,0)+6,0)),VLOOKUP($C33,[1]IL_BP6!$E$2:$CE$304,MATCH($E33,[1]IL_BP6!$K$1:$CE$1,0)+6,0),"") -> 98.67516685 | BZ33: ='[2]Chile Raw Data and Sources'!B67 -> 0.7245 | CA33: ='[2]Chile Raw Data and Sources'!C67 -> 5.451 | CB33: =IF(ISNUMBER(VLOOKUP($C33,[1]PCPI!$E$2:$CE$304,MATCH($E33,[1]PCPI!$K$1:$CE$1,0)+6,0)),VLOOKUP($C33,[1]PCPI!$E$2:$CE$304,MATCH($E33,[1]PCPI!$K$1:$CE$1,0)+6,0),"") -> 73.265825 | CC33: 0.02810589893 | CD33: =IF(ISNUMBER(VLOOKUP($C33,[1]NGDP_R!$E$2:$CE$304,MATCH($E33,[1]NGDP_R!$K$1:$CE$1,0)+6,0)),VLOOKUP($C33,[1]NGDP_R!$E$2:$CE$304,MATCH($E33,[1]NGDP_R!$K$1:$CE$1,0)+6,0),"") -> 86885
B34: -9 | C34: 228 | D34: Chile | E34: 2004 | F34: =IF(ISNUMBER(VLOOKUP($C34,[1]NGDPD!$E$2:$CE$305,MATCH($E34,[1]NGDPD!$K$1:$CE$1,0)+6,0)),VLOOKUP($C34,[1]NGDPD!$E$2:$CE$305,MATCH($E34,[1]NGDPD!$K$1:$CE$1,0)+6,0),"") -> 99.23561219 | G34: =IF(ISNUMBER(VLOOKUP($C34,[1]BX_WEO!$E$2:$CE$305,MATCH($E34,[1]BX_WEO!$K$1:$CE$1,0)+6,0)),VLOOKUP($C34,[1]BX_WEO!$E$2:$CE$305,MATCH($E34,[1]BX_WEO!$K$1:$CE$1,0)+6,0),"") -> 39.0534 | H34: =IF(ISNUMBER(VLOOKUP($C34,[1]BM_WEO!$E$2:$CE$304,MATCH($E34,[1]BM_WEO!$K$1:$CE$1,0)+6,0)),VLOOKUP($C34,[1]BM_WEO!$E$2:$CE$304,MATCH($E34,[1]BM_WEO!$K$1:$CE$1,0)+6,0),"") -> 29.191 | I34: -2363392.282 | J34: 10589002.74 | K34: 12952395.02 | L34: 1 | BM34: 2004 | BN34: 0.1101963273 | BO34: 0.09938367671 | BP34: =IF(ISNUMBER(VLOOKUP($C34,[1]BIS_WEO!$E$2:$CE$304,MATCH($E34,[1]BIS_WEO!$K$1:$CE$1,0)+6,0)),VLOOKUP($C34,[1]BIS_WEO!$E$2:$CE$304,MATCH($E34,[1]BIS_WEO!$K$1:$CE$1,0)+6,0),"") -> 1.073 | BQ34: 0.01081265058 | BR34: 64.127 | BS34: 0.646209547 | BT34: =IF(ISNUMBER(VLOOKUP($C34,[1]IA_BP6!$E$2:$CE$304,MATCH($E34,[1]IA_BP6!$K$1:$CE$1,0)+6,0)),VLOOKUP($C34,[1]IA_BP6!$E$2:$CE$304,MATCH($E34,[1]IA_BP6!$K$1:$CE$1,0)+6,0),"") -> 75.97531106 | BU34: 0.7656053042 | BV34: =IF(ISNUMBER(VLOOKUP($C34,[1]IL_BP6!$E$2:$CE$304,MATCH($E34,[1]IL_BP6!$K$1:$CE$1,0)+6,0)),VLOOKUP($C34,[1]IL_BP6!$E$2:$CE$304,MATCH($E34,[1]IL_BP6!$K$1:$CE$1,0)+6,0),"") -> 106.3584015 | BZ34: ='[2]Chile Raw Data and Sources'!B68 -> 0.8096 | CA34: ='[2]Chile Raw Data and Sources'!C68 -> 8.968 | CB34: =IF(ISNUMBER(VLOOKUP($C34,[1]PCPI!$E$2:$CE$304,MATCH($E34,[1]PCPI!$K$1:$CE$1,0)+6,0)),VLOOKUP($C34,[1]PCPI!$E$2:$CE$304,MATCH($E34,[1]PCPI!$K$1:$CE$1,0)+6,0),"") -> 74.03724167 | CC34: 0.01052901085 | CD34: =IF(ISNUMBER(VLOOKUP($C34,[1]NGDP_R!$E$2:$CE$304,MATCH($E34,[1]NGDP_R!$K$1:$CE$1,0)+6,0)),VLOOKUP($C34,[1]NGDP_R!$E$2:$CE$304,MATCH($E34,[1]NGDP_R!$K$1:$CE$1,0)+6,0),"") -> 93124
B35: -8 | C35: 228 | D35: Chile | E35: 2005 | F35: =IF(ISNUMBER(VLOOKUP($C35,[1]NGDPD!$E$2:$CE$305,MATCH($E35,[1]NGDPD!$K$1:$CE$1,0)+6,0)),VLOOKUP($C35,[1]NGDPD!$E$2:$CE$305,MATCH($E35,[1]NGDPD!$K$1:$CE$1,0)+6,0),"") -> 122.9581925 | G35: =IF(ISNUMBER(VLOOKUP($C35,[1]BX_WEO!$E$2:$CE$305,MATCH($E35,[1]BX_WEO!$K$1:$CE$1,0)+6,0)),VLOOKUP($C35,[1]BX_WEO!$E$2:$CE$305,MATCH($E35,[1]BX_WEO!$K$1:$CE$1,0)+6,0),"") -> 48.9659 | H35: =IF(ISNUMBER(VLOOKUP($C35,[1]BM_WEO!$E$2:$CE$304,MATCH($E35,[1]BM_WEO!$K$1:$CE$1,0)+6,0)),VLOOKUP($C35,[1]BM_WEO!$E$2:$CE$304,MATCH($E35,[1]BM_WEO!$K$1:$CE$1,0)+6,0),"") -> 38.2 | I35: -1915780.071 | J35: 12166971.68 | K35: 14082751.75 | L35: 1 | BM35: 2005 | BN35: 0.1020582667 | BO35: 0.08755740292 | BP35: =IF(ISNUMBER(VLOOKUP($C35,[1]BIS_WEO!$E$2:$CE$304,MATCH($E35,[1]BIS_WEO!$K$1:$CE$1,0)+6,0)),VLOOKUP($C35,[1]BIS_WEO!$E$2:$CE$304,MATCH($E35,[1]BIS_WEO!$K$1:$CE$1,0)+6,0),"") -> 1.783 | BQ35: 0.01450086378 | BR35: 67.631 | BS35: 0.5500324838 | BT35: =IF(ISNUMBER(VLOOKUP($C35,[1]IA_BP6!$E$2:$CE$304,MATCH($E35,[1]IA_BP6!$K$1:$CE$1,0)+6,0)),VLOOKUP($C35,[1]IA_BP6!$E$2:$CE$304,MATCH($E35,[1]IA_BP6!$K$1:$CE$1,0)+6,0),"") -> 91.89843108 | BU35: 0.7473957549 | BV35: =IF(ISNUMBER(VLOOKUP($C35,[1]IL_BP6!$E$2:$CE$304,MATCH($E35,[1]IL_BP6!$K$1:$CE$1,0)+6,0)),VLOOKUP($C35,[1]IL_BP6!$E$2:$CE$304,MATCH($E35,[1]IL_BP6!$K$1:$CE$1,0)+6,0),"") -> 124.7381776 | BZ35: ='[2]Chile Raw Data and Sources'!B69 -> 1.4962 | CA35: ='[2]Chile Raw Data and Sources'!C69 -> 12.281 | CB35: =IF(ISNUMBER(VLOOKUP($C35,[1]PCPI!$E$2:$CE$304,MATCH($E35,[1]PCPI!$K$1:$CE$1,0)+6,0)),VLOOKUP($C35,[1]PCPI!$E$2:$CE$304,MATCH($E35,[1]PCPI!$K$1:$CE$1,0)+6,0),"") -> 76.2973 | CC35: 0.03052596616 | CD35: =IF(ISNUMBER(VLOOKUP($C35,[1]NGDP_R!$E$2:$CE$304,MATCH($E35,[1]NGDP_R!$K$1:$CE$1,0)+6,0)),VLOOKUP($C35,[1]NGDP_R!$E$2:$CE$304,MATCH($E35,[1]NGDP_R!$K$1:$CE$1,0)+6,0),"") -> 98476
B36: -7 | C36: 228 | D36: Chile | E36: 2006 | F36: =IF(ISNUMBER(VLOOKUP($C36,[1]NGDPD!$E$2:$CE$305,MATCH($E36,[1]NGDPD!$K$1:$CE$1,0)+6,0)),VLOOKUP($C36,[1]NGDPD!$E$2:$CE$305,MATCH($E36,[1]NGDPD!$K$1:$CE$1,0)+6,0),"") -> 154.7819528 | G36: =IF(ISNUMBER(VLOOKUP($C36,[1]BX_WEO!$E$2:$CE$305,MATCH($E36,[1]BX_WEO!$K$1:$CE$1,0)+6,0)),VLOOKUP($C36,[1]BX_WEO!$E$2:$CE$305,MATCH($E36,[1]BX_WEO!$K$1:$CE$1,0)+6,0),"") -> 67.118 | H36: =IF(ISNUMBER(VLOOKUP($C36,[1]BM_WEO!$E$2:$CE$304,MATCH($E36,[1]BM_WEO!$K$1:$CE$1,0)+6,0)),VLOOKUP($C36,[1]BM_WEO!$E$2:$CE$304,MATCH($E36,[1]BM_WEO!$K$1:$CE$1,0)+6,0),"") -> 44.74 | I36: -1868309.455 | J36: 15170862.4 | K36: 17039171.85 | L36: 1 | BM36: 2006 | BN36: 0.1665827284 | BO36: 0.144577579 | BP36: =IF(ISNUMBER(VLOOKUP($C36,[1]BIS_WEO!$E$2:$CE$304,MATCH($E36,[1]BIS_WEO!$K$1:$CE$1,0)+6,0)),VLOOKUP($C36,[1]BIS_WEO!$E$2:$CE$304,MATCH($E36,[1]BIS_WEO!$K$1:$CE$1,0)+6,0),"") -> 3.406 | BQ36: 0.02200514943 | BR36: 43.336 | BS36: 0.2799809618 | BT36: =IF(ISNUMBER(VLOOKUP($C36,[1]IA_BP6!$E$2:$CE$304,MATCH($E36,[1]IA_BP6!$K$1:$CE$1,0)+6,0)),VLOOKUP($C36,[1]IA_BP6!$E$2:$CE$304,MATCH($E36,[1]IA_BP6!$K$1:$CE$1,0)+6,0),"") -> 120.9571461 | BU36: 0.7814680198 | BV36: =IF(ISNUMBER(VLOOKUP($C36,[1]IL_BP6!$E$2:$CE$304,MATCH($E36,[1]IL_BP6!$K$1:$CE$1,0)+6,0)),VLOOKUP($C36,[1]IL_BP6!$E$2:$CE$304,MATCH($E36,[1]IL_BP6!$K$1:$CE$1,0)+6,0),"") -> 136.8682627 | BW36: =BV36/F36 -> 0.8842649951 | BZ36: ='[2]Chile Raw Data and Sources'!B70 -> 2.4202 | CA36: ='[2]Chile Raw Data and Sources'!C70 -> 21.267 | CB36: =IF(ISNUMBER(VLOOKUP($C36,[1]PCPI!$E$2:$CE$304,MATCH($E36,[1]PCPI!$K$1:$CE$1,0)+6,0)),VLOOKUP($C36,[1]PCPI!$E$2:$CE$304,MATCH($E36,[1]PCPI!$K$1:$CE$1,0)+6,0),"") -> 78.89305 | CC36: 0.03402151845 | CD36: =IF(ISNUMBER(VLOOKUP($C36,[1]NGDP_R!$E$2:$CE$304,MATCH($E36,[1]NGDP_R!$K$1:$CE$1,0)+6,0)),VLOOKUP($C36,[1]NGDP_R!$E$2:$CE$304,MATCH($E36,[1]NGDP_R!$K$1:$CE$1,0)+6,0),"") -> 104721
B37: -6 | C37: 228 | D37: Chile | E37: 2007 | F37: =IF(ISNUMBER(VLOOKUP($C37,[1]NGDPD!$E$2:$CE$305,MATCH($E37,[1]NGDPD!$K$1:$CE$1,0)+6,0)),VLOOKUP($C37,[1]NGDPD!$E$2:$CE$305,MATCH($E37,[1]NGDPD!$K$1:$CE$1,0)+6,0),"") -> 173.4710771 | G37: =IF(ISNUMBER(VLOOKUP($C37,[1]BX_WEO!$E$2:$CE$305,MATCH($E37,[1]BX_WEO!$K$1:$CE$1,0)+6,0)),VLOOKUP($C37,[1]BX_WEO!$E$2:$CE$305,MATCH($E37,[1]BX_WEO!$K$1:$CE$1,0)+6,0),"") -> 77.5843 | H37: =IF(ISNUMBER(VLOOKUP($C37,[1]BM_WEO!$E$2:$CE$304,MATCH($E37,[1]BM_WEO!$K$1:$CE$1,0)+6,0)),VLOOKUP($C37,[1]BM_WEO!$E$2:$CE$304,MATCH($E37,[1]BM_WEO!$K$1:$CE$1,0)+6,0),"") -> 53.93 | I37: -1350965.075 | J37: 18145171.41 | K37: 19496136.48 | L37: 1 | BM37: 2007 | BN37: 0.1544021081 | BO37: 0.1363587544 | BP37: =IF(ISNUMBER(VLOOKUP($C37,[1]BIS_WEO!$E$2:$CE$304,MATCH($E37,[1]BIS_WEO!$K$1:$CE$1,0)+6,0)),VLOOKUP($C37,[1]BIS_WEO!$E$2:$CE$304,MATCH($E37,[1]BIS_WEO!$K$1:$CE$1,0)+6,0),"") -> 3.13 | BQ37: 0.01804335369 | BR37: 100.604 | BS37: 0.5799468226 | BT37: =IF(ISNUMBER(VLOOKUP($C37,[1]IA_BP6!$E$2:$CE$304,MATCH($E37,[1]IA_BP6!$K$1:$CE$1,0)+6,0)),VLOOKUP($C37,[1]IA_BP6!$E$2:$CE$304,MATCH($E37,[1]IA_BP6!$K$1:$CE$1,0)+6,0),"") -> 164.5854183 | BU37: 0.9487772892 | BV37: =IF(ISNUMBER(VLOOKUP($C37,[1]IL_BP6!$E$2:$CE$304,MATCH($E37,[1]IL_BP6!$K$1:$CE$1,0)+6,0)),VLOOKUP($C37,[1]IL_BP6!$E$2:$CE$304,MATCH($E37,[1]IL_BP6!$K$1:$CE$1,0)+6,0),"") -> 163.8585483 | BW37: =BV37/F37 -> 0.9445871378 | BX37: =(BZ37/BT36)/(1+CC37) -> 0.03834023531 | BY37: =(CA37/BV36)/(1+CC37) -> 0.1699404712 | BZ37: ='[2]Chile Raw Data and Sources'!B71 -> 4.8422 | CA37: ='[2]Chile Raw Data and Sources'!C71 -> 24.286 | CB37: =IF(ISNUMBER(VLOOKUP($C37,[1]PCPI!$E$2:$CE$304,MATCH($E37,[1]PCPI!$K$1:$CE$1,0)+6,0)),VLOOKUP($C37,[1]PCPI!$E$2:$CE$304,MATCH($E37,[1]PCPI!$K$1:$CE$1,0)+6,0),"") -> 82.37495 | CC37: 0.04413443263 | CD37: =IF(ISNUMBER(VLOOKUP($C37,[1]NGDP_R!$E$2:$CE$304,MATCH($E37,[1]NGDP_R!$K$1:$CE$1,0)+6,0)),VLOOKUP($C37,[1]NGDP_R!$E$2:$CE$304,MATCH($E37,[1]NGDP_R!$K$1:$CE$1,0)+6,0),"") -> 109889
B38: -5 | C38: 228 | D38: Chile | E38: 2008 | F38: =IF(ISNUMBER(VLOOKUP($C38,[1]NGDPD!$E$2:$CE$305,MATCH($E38,[1]NGDPD!$K$1:$CE$1,0)+6,0)),VLOOKUP($C38,[1]NGDPD!$E$2:$CE$305,MATCH($E38,[1]NGDPD!$K$1:$CE$1,0)+6,0),"") -> 179.5101068 | G38: =IF(ISNUMBER(VLOOKUP($C38,[1]BX_WEO!$E$2:$CE$305,MATCH($E38,[1]BX_WEO!$K$1:$CE$1,0)+6,0)),VLOOKUP($C38,[1]BX_WEO!$E$2:$CE$305,MATCH($E38,[1]BX_WEO!$K$1:$CE$1,0)+6,0),"") -> 75.1231 | H38: =IF(ISNUMBER(VLOOKUP($C38,[1]BM_WEO!$E$2:$CE$304,MATCH($E38,[1]BM_WEO!$K$1:$CE$1,0)+6,0)),VLOOKUP($C38,[1]BM_WEO!$E$2:$CE$304,MATCH($E38,[1]BM_WEO!$K$1:$CE$1,0)+6,0),"") -> 70.086 | I38: -4154936.158 | J38: 13295966.44 | K38: 17450902.6 | L38: 1 | BM38: 2008 | BN38: 0.04438245925 | BO38: 0.0280602585 | BP38: =IF(ISNUMBER(VLOOKUP($C38,[1]BIS_WEO!$E$2:$CE$304,MATCH($E38,[1]BIS_WEO!$K$1:$CE$1,0)+6,0)),VLOOKUP($C38,[1]BIS_WEO!$E$2:$CE$304,MATCH($E38,[1]BIS_WEO!$K$1:$CE$1,0)+6,0),"") -> 2.93 | BQ38: 0.01632220075 | BR38: 146.148 | BS38: 0.8141491451 | BT38: =IF(ISNUMBER(VLOOKUP($C38,[1]IA_BP6!$E$2:$CE$304,MATCH($E38,[1]IA_BP6!$K$1:$CE$1,0)+6,0)),VLOOKUP($C38,[1]IA_BP6!$E$2:$CE$304,MATCH($E38,[1]IA_BP6!$K$1:$CE$1,0)+6,0),"") -> 142.7108231 | BU38: 0.7950016054 | BV38: =IF(ISNUMBER(VLOOKUP($C38,[1]IL_BP6!$E$2:$CE$304,MATCH($E38,[1]IL_BP6!$K$1:$CE$1,0)+6,0)),VLOOKUP($C38,[1]IL_BP6!$E$2:$CE$304,MATCH($E38,[1]IL_BP6!$K$1:$CE$1,0)+6,0),"") -> 172.5444235 | BW38: 0.9611961498 | BX38: =(BZ38/BT37)/(1+CC38) -> 0.02662413493 | BY38: =(CA38/BV37)/(1+CC38) -> 0.1088168079 | BZ38: ='[2]Chile Raw Data and Sources'!B72 -> 4.7642 | CA38: ='[2]Chile Raw Data and Sources'!C72 -> 19.386 | CB38: =IF(ISNUMBER(VLOOKUP($C38,[1]PCPI!$E$2:$CE$304,MATCH($E38,[1]PCPI!$K$1:$CE$1,0)+6,0)),VLOOKUP($C38,[1]PCPI!$E$2:$CE$304,MATCH($E38,[1]PCPI!$K$1:$CE$1,0)+6,0),"") -> 89.56086667 | CC38: 0.08723424617 | CD38: =IF(ISNUMBER(VLOOKUP($C38,[1]NGDP_R!$E$2:$CE$304,MATCH($E38,[1]NGDP_R!$K$1:$CE$1,0)+6,0)),VLOOKUP($C38,[1]NGDP_R!$E$2:$CE$304,MATCH($E38,[1]NGDP_R!$K$1:$CE$1,0)+6,0),"") -> 113740
B39: -4 | C39: 228 | D39: Chile | E39: 2009 | F39: =IF(ISNUMBER(VLOOKUP($C39,[1]NGDPD!$E$2:$CE$305,MATCH($E39,[1]NGDPD!$K$1:$CE$1,0)+6,0)),VLOOKUP($C39,[1]NGDPD!$E$2:$CE$305,MATCH($E39,[1]NGDPD!$K$1:$CE$1,0)+6,0),"") -> 172.5117157 | G39: =IF(ISNUMBER(VLOOKUP($C39,[1]BX_WEO!$E$2:$CE$305,MATCH($E39,[1]BX_WEO!$K$1:$CE$1,0)+6,0)),VLOOKUP($C39,[1]BX_WEO!$E$2:$CE$305,MATCH($E39,[1]BX_WEO!$K$1:$CE$1,0)+6,0),"") -> 63.9038 | H39: =IF(ISNUMBER(VLOOKUP($C39,[1]BM_WEO!$E$2:$CE$304,MATCH($E39,[1]BM_WEO!$K$1:$CE$1,0)+6,0)),VLOOKUP($C39,[1]BM_WEO!$E$2:$CE$304,MATCH($E39,[1]BM_WEO!$K$1:$CE$1,0)+6,0),"") -> 50.221 | I39: -2753961.048 | J39: 15936679.99 | K39: 18690641.04 | L39: 1 | BM39: 2009 | BN39: 0.08837544709 | BO39: 0.07931519287 | BP39: =IF(ISNUMBER(VLOOKUP($C39,[1]BIS_WEO!$E$2:$CE$304,MATCH($E39,[1]BIS_WEO!$K$1:$CE$1,0)+6,0)),VLOOKUP($C39,[1]BIS_WEO!$E$2:$CE$304,MATCH($E39,[1]BIS_WEO!$K$1:$CE$1,0)+6,0),"") -> 1.563 | BQ39: 0.009060254221 | BR39: 123.585 | BS39: 0.7163861279 | BT39: =IF(ISNUMBER(VLOOKUP($C39,[1]IA_BP6!$E$2:$CE$304,MATCH($E39,[1]IA_BP6!$K$1:$CE$1,0)+6,0)),VLOOKUP($C39,[1]IA_BP6!$E$2:$CE$304,MATCH($E39,[1]IA_BP6!$K$1:$CE$1,0)+6,0),"") -> 191.9610856 | BU39: 1.112742314 | BV39: =IF(ISNUMBER(VLOOKUP($C39,[1]IL_BP6!$E$2:$CE$304,MATCH($E39,[1]IL_BP6!$K$1:$CE$1,0)+6,0)),VLOOKUP($C39,[1]IL_BP6!$E$2:$CE$304,MATCH($E39,[1]IL_BP6!$K$1:$CE$1,0)+6,0),"") -> 214.5574371 | BW39: 1.243726759 | BX39: 0.02933537519 | BY39: 0.09354215675 | BZ39: ='[2]Chile Raw Data and Sources'!B73 -> 4.2492 | CA39: ='[2]Chile Raw Data and Sources'!C73 -> 16.382 | CB39: =IF(ISNUMBER(VLOOKUP($C39,[1]PCPI!$E$2:$CE$304,MATCH($E39,[1]PCPI!$K$1:$CE$1,0)+6,0)),VLOOKUP($C39,[1]PCPI!$E$2:$CE$304,MATCH($E39,[1]PCPI!$K$1:$CE$1,0)+6,0),"") -> 90.902725 | CC39: 0.01498264123 | CD39: =IF(ISNUMBER(VLOOKUP($C39,[1]NGDP_R!$E$2:$CE$304,MATCH($E39,[1]NGDP_R!$K$1:$CE$1,0)+6,0)),VLOOKUP($C39,[1]NGDP_R!$E$2:$CE$304,MATCH($E39,[1]NGDP_R!$K$1:$CE$1,0)+6,0),"") -> 111972
B40: -3 | C40: 228 | D40: Chile | E40: 2010 | F40: =IF(ISNUMBER(VLOOKUP($C40,[1]NGDPD!$E$2:$CE$305,MATCH($E40,[1]NGDPD!$K$1:$CE$1,0)+6,0)),VLOOKUP($C40,[1]NGDPD!$E$2:$CE$305,MATCH($E40,[1]NGDPD!$K$1:$CE$1,0)+6,0),"") -> 218.271792 | G40: =IF(ISNUMBER(VLOOKUP($C40,[1]BX_WEO!$E$2:$CE$305,MATCH($E40,[1]BX_WEO!$K$1:$CE$1,0)+6,0)),VLOOKUP($C40,[1]BX_WEO!$E$2:$CE$305,MATCH($E40,[1]BX_WEO!$K$1:$CE$1,0)+6,0),"") -> 81.9565 | H40: =IF(ISNUMBER(VLOOKUP($C40,[1]BM_WEO!$E$2:$CE$304,MATCH($E40,[1]BM_WEO!$K$1:$CE$1,0)+6,0)),VLOOKUP($C40,[1]BM_WEO!$E$2:$CE$304,MATCH($E40,[1]BM_WEO!$K$1:$CE$1,0)+6,0),"") -> 67.818 | I40: -2622169.803 | J40: 18115514.41 | K40: 20737684.21 | L40: 1 | BM40: 2010 | BN40: 0.08498349615 | BO40: 0.06477474651 | BP40: =IF(ISNUMBER(VLOOKUP($C40,[1]BIS_WEO!$E$2:$CE$304,MATCH($E40,[1]BIS_WEO!$K$1:$CE$1,0)+6,0)),VLOOKUP($C40,[1]BIS_WEO!$E$2:$CE$304,MATCH($E40,[1]BIS_WEO!$K$1:$CE$1,0)+6,0),"") -> 4.411 | BQ40: 0.02020874964 | BR40: 177.662 | BS40: 0.8139485104 | BT40: =IF(ISNUMBER(VLOOKUP($C40,[1]IA_BP6!$E$2:$CE$304,MATCH($E40,[1]IA_BP6!$K$1:$CE$1,0)+6,0)),VLOOKUP($C40,[1]IA_BP6!$E$2:$CE$304,MATCH($E40,[1]IA_BP6!$K$1:$CE$1,0)+6,0),"") -> 235.083319 | BU40: 1.07702107 | BV40: =IF(ISNUMBER(VLOOKUP($C40,[1]IL_BP6!$E$2:$CE$304,MATCH($E40,[1]IL_BP6!$K$1:$CE$1,0)+6,0)),VLOOKUP($C40,[1]IL_BP6!$E$2:$CE$304,MATCH($E40,[1]IL_BP6!$K$1:$CE$1,0)+6,0),"") -> 264.7159888 | BW40: 1.212781488 | BX40: 0.02837043072 | BY40: 0.09696731929 | BZ40: ='[2]Chile Raw Data and Sources'!B74 -> 5.5227 | CA40: ='[2]Chile Raw Data and Sources'!C74 -> 21.098 | CB40: =IF(ISNUMBER(VLOOKUP($C40,[1]PCPI!$E$2:$CE$304,MATCH($E40,[1]PCPI!$K$1:$CE$1,0)+6,0)),VLOOKUP($C40,[1]PCPI!$E$2:$CE$304,MATCH($E40,[1]PCPI!$K$1:$CE$1,0)+6,0),"") -> 92.18265833 | CC40: 0.01408025264 | CD40: =IF(ISNUMBER(VLOOKUP($C40,[1]NGDP_R!$E$2:$CE$304,MATCH($E40,[1]NGDP_R!$K$1:$CE$1,0)+6,0)),VLOOKUP($C40,[1]NGDP_R!$E$2:$CE$304,MATCH($E40,[1]NGDP_R!$K$1:$CE$1,0)+6,0),"") -> 118515
B41: -2 | C41: 228 | D41: Chile | E41: 2011 | F41: =IF(ISNUMBER(VLOOKUP($C41,[1]NGDPD!$E$2:$CE$305,MATCH($E41,[1]NGDPD!$K$1:$CE$1,0)+6,0)),VLOOKUP($C41,[1]NGDPD!$E$2:$CE$305,MATCH($E41,[1]NGDPD!$K$1:$CE$1,0)+6,0),"") -> 252.0719296 | G41: =IF(ISNUMBER(VLOOKUP($C41,[1]BX_WEO!$E$2:$CE$305,MATCH($E41,[1]BX_WEO!$K$1:$CE$1,0)+6,0)),VLOOKUP($C41,[1]BX_WEO!$E$2:$CE$305,MATCH($E41,[1]BX_WEO!$K$1:$CE$1,0)+6,0),"") -> 94.349 | H41: =IF(ISNUMBER(VLOOKUP($C41,[1]BM_WEO!$E$2:$CE$304,MATCH($E41,[1]BM_WEO!$K$1:$CE$1,0)+6,0)),VLOOKUP($C41,[1]BM_WEO!$E$2:$CE$304,MATCH($E41,[1]BM_WEO!$K$1:$CE$1,0)+6,0),"") -> 86.031 | I41: -4541037.27 | J41: 17492316.84 | K41: 22033354.11 | L41: 1 | BM41: 2011 | BN41: 0.044364321 | BO41: 0.03299851758 | BP41: =IF(ISNUMBER(VLOOKUP($C41,[1]BIS_WEO!$E$2:$CE$304,MATCH($E41,[1]BIS_WEO!$K$1:$CE$1,0)+6,0)),VLOOKUP($C41,[1]BIS_WEO!$E$2:$CE$304,MATCH($E41,[1]BIS_WEO!$K$1:$CE$1,0)+6,0),"") -> 2.865 | BQ41: 0.01136580342 | BR41: 220.961 | BS41: 0.8765791588 | BT41: =IF(ISNUMBER(VLOOKUP($C41,[1]IA_BP6!$E$2:$CE$304,MATCH($E41,[1]IA_BP6!$K$1:$CE$1,0)+6,0)),VLOOKUP($C41,[1]IA_BP6!$E$2:$CE$304,MATCH($E41,[1]IA_BP6!$K$1:$CE$1,0)+6,0),"") -> 254.5122639 | BU41: 1.009681103 | BV41: =IF(ISNUMBER(VLOOKUP($C41,[1]IL_BP6!$E$2:$CE$304,MATCH($E41,[1]IL_BP6!$K$1:$CE$1,0)+6,0)),VLOOKUP($C41,[1]IL_BP6!$E$2:$CE$304,MATCH($E41,[1]IL_BP6!$K$1:$CE$1,0)+6,0),"") -> 286.2223362 | BW41: 1.135478816 | BX41: 0.02150869793 | BY41: 0.07553533071 | BZ41: ='[2]Chile Raw Data and Sources'!B75 -> 5.2249 | CA41: ='[2]Chile Raw Data and Sources'!C75 -> 20.662 | CB41: =IF(ISNUMBER(VLOOKUP($C41,[1]PCPI!$E$2:$CE$304,MATCH($E41,[1]PCPI!$K$1:$CE$1,0)+6,0)),VLOOKUP($C41,[1]PCPI!$E$2:$CE$304,MATCH($E41,[1]PCPI!$K$1:$CE$1,0)+6,0),"") -> 95.25576667 | CC41: 0.03333716329 | CD41: =IF(ISNUMBER(VLOOKUP($C41,[1]NGDP_R!$E$2:$CE$304,MATCH($E41,[1]NGDP_R!$K$1:$CE$1,0)+6,0)),VLOOKUP($C41,[1]NGDP_R!$E$2:$CE$304,MATCH($E41,[1]NGDP_R!$K$1:$CE$1,0)+6,0),"") -> 125691
B42: =B43-1 -> -1 | C42: 228 | D42: Chile | E42: =+E43-1 -> 2012 | F42: =IF(ISNUMBER(VLOOKUP($C42,[1]NGDPD!$E$2:$CE$305,MATCH($E42,[1]NGDPD!$K$1:$CE$1,0)+6,0)),VLOOKUP($C42,[1]NGDPD!$E$2:$CE$305,MATCH($E42,[1]NGDPD!$K$1:$CE$1,0)+6,0),"") -> 267.0261567 | G42: =IF(ISNUMBER(VLOOKUP($C42,[1]BX_WEO!$E$2:$CE$305,MATCH($E42,[1]BX_WEO!$K$1:$CE$1,0)+6,0)),VLOOKUP($C42,[1]BX_WEO!$E$2:$CE$305,MATCH($E42,[1]BX_WEO!$K$1:$CE$1,0)+6,0),"") -> 90.333 | H42: =IF(ISNUMBER(VLOOKUP($C42,[1]BM_WEO!$E$2:$CE$304,MATCH($E42,[1]BM_WEO!$K$1:$CE$1,0)+6,0)),VLOOKUP($C42,[1]BM_WEO!$E$2:$CE$304,MATCH($E42,[1]BM_WEO!$K$1:$CE$1,0)+6,0),"") -> 90.267 | I42: -4576074.881 | J42: 18942401.5 | K42: 23518476.38 | L42: 1 | BM42: 2012 | BN42: 0.00795802189 | BO42: 0.0002471667975 | BP42: =IF(ISNUMBER(VLOOKUP($C42,[1]BIS_WEO!$E$2:$CE$304,MATCH($E42,[1]BIS_WEO!$K$1:$CE$1,0)+6,0)),VLOOKUP($C42,[1]BIS_WEO!$E$2:$CE$304,MATCH($E42,[1]BIS_WEO!$K$1:$CE$1,0)+6,0),"") -> 2.059 | BQ42: 0.007710855093 | BR42: 215.791 | BS42: 0.8081268243 | BT42: =IF(ISNUMBER(VLOOKUP($C42,[1]IA_BP6!$E$2:$CE$304,MATCH($E42,[1]IA_BP6!$K$1:$CE$1,0)+6,0)),VLOOKUP($C42,[1]IA_BP6!$E$2:$CE$304,MATCH($E42,[1]IA_BP6!$K$1:$CE$1,0)+6,0),"") -> 291.5297933 | BU42: 1.09176493 | BV42: =IF(ISNUMBER(VLOOKUP($C42,[1]IL_BP6!$E$2:$CE$304,MATCH($E42,[1]IL_BP6!$K$1:$CE$1,0)+6,0)),VLOOKUP($C42,[1]IL_BP6!$E$2:$CE$304,MATCH($E42,[1]IL_BP6!$K$1:$CE$1,0)+6,0),"") -> 333.6849661 | BW42: 1.249634007 | BX42: 0.02334972358 | BY42: 0.06405920509 | BZ42: ='[2]Chile Raw Data and Sources'!B76 -> 6.121 | CA42: ='[2]Chile Raw Data and Sources'!C76 -> 18.885 | CB42: =IF(ISNUMBER(VLOOKUP($C42,[1]PCPI!$E$2:$CE$304,MATCH($E42,[1]PCPI!$K$1:$CE$1,0)+6,0)),VLOOKUP($C42,[1]PCPI!$E$2:$CE$304,MATCH($E42,[1]PCPI!$K$1:$CE$1,0)+6,0),"") -> 98.11224167 | CC42: 0.02998742333 | CD42: =IF(ISNUMBER(VLOOKUP($C42,[1]NGDP_R!$E$2:$CE$304,MATCH($E42,[1]NGDP_R!$K$1:$CE$1,0)+6,0)),VLOOKUP($C42,[1]NGDP_R!$E$2:$CE$304,MATCH($E42,[1]NGDP_R!$K$1:$CE$1,0)+6,0),"") -> 132393
B43: 0 | C43: 228 | D43: Chile | E43: =$D$4 -> 2013 | F43: =IF(ISNUMBER(VLOOKUP($C43,[1]NGDPD!$E$2:$CE$305,MATCH($E43,[1]NGDPD!$K$1:$CE$1,0)+6,0)),VLOOKUP($C43,[1]NGDPD!$E$2:$CE$305,MATCH($E43,[1]NGDPD!$K$1:$CE$1,0)+6,0),"") -> 278.3403688 | G43: =IF(ISNUMBER(VLOOKUP($C43,[1]BX_WEO!$E$2:$CE$305,MATCH($E43,[1]BX_WEO!$K$1:$CE$1,0)+6,0)),VLOOKUP($C43,[1]BX_WEO!$E$2:$CE$305,MATCH($E43,[1]BX_WEO!$K$1:$CE$1,0)+6,0),"") -> 88.8859 | H43: =IF(ISNUMBER(VLOOKUP($C43,[1]BM_WEO!$E$2:$CE$304,MATCH($E43,[1]BM_WEO!$K$1:$CE$1,0)+6,0)),VLOOKUP($C43,[1]BM_WEO!$E$2:$CE$304,MATCH($E43,[1]BM_WEO!$K$1:$CE$1,0)+6,0),"") -> 90.297 | I43: =IF(AND(ISNUMBER(J43),ISNUMBER(K43)),J43-K43,"") -> -5450211.065 | J43: 21127675.08 | K43: 26577886.15 | L43: 1 | BM43: 2013 | BN43: 0.002863041403 | BO43: -0.005069692213 | BP43: =IF(ISNUMBER(VLOOKUP($C43,[1]BIS_WEO!$E$2:$CE$304,MATCH($E43,[1]BIS_WEO!$K$1:$CE$1,0)+6,0)),VLOOKUP($C43,[1]BIS_WEO!$E$2:$CE$304,MATCH($E43,[1]BIS_WEO!$K$1:$CE$1,0)+6,0),"") -> 2.208 | BQ43: 0.007932733616 | BR43: 218.97 | BS43: 0.7866986775 | BT43: =IF(ISNUMBER(VLOOKUP($C43,[1]IA_BP6!$E$2:$CE$304,MATCH($E43,[1]IA_BP6!$K$1:$CE$1,0)+6,0)),VLOOKUP($C43,[1]IA_BP6!$E$2:$CE$304,MATCH($E43,[1]IA_BP6!$K$1:$CE$1,0)+6,0),"") -> 306.1443511 | BU43: 1.099892022 | BV43: =IF(ISNUMBER(VLOOKUP($C43,[1]IL_BP6!$E$2:$CE$304,MATCH($E43,[1]IL_BP6!$K$1:$CE$1,0)+6,0)),VLOOKUP($C43,[1]IL_BP6!$E$2:$CE$304,MATCH($E43,[1]IL_BP6!$K$1:$CE$1,0)+6,0),"") -> 344.1972492 | BW43: 1.236605566 | BX43: 0.02015940027 | BY43: 0.05333477053 | BZ43: ='[2]Chile Raw Data and Sources'!B77 -> 5.99 | CA43: ='[2]Chile Raw Data and Sources'!C77 -> 18.139 | CB43: =IF(ISNUMBER(VLOOKUP($C43,[1]PCPI!$E$2:$CE$304,MATCH($E43,[1]PCPI!$K$1:$CE$1,0)+6,0)),VLOOKUP($C43,[1]PCPI!$E$2:$CE$304,MATCH($E43,[1]PCPI!$K$1:$CE$1,0)+6,0),"") -> 99.997575 | CC43: 0.01921608661 | CD43: =IF(ISNUMBER(VLOOKUP($C43,[1]NGDP_R!$E$2:$CE$304,MATCH($E43,[1]NGDP_R!$K$1:$CE$1,0)+6,0)),VLOOKUP($C43,[1]NGDP_R!$E$2:$CE$304,MATCH($E43,[1]NGDP_R!$K$1:$CE$1,0)+6,0),"") -> 137750
B44: 1 | C44: 228 | D44: Chile | E44: =+E43+1 -> 2014 | F44: =IF(ISNUMBER(VLOOKUP($C44,[1]NGDPD!$E$2:$CE$305,MATCH($E44,[1]NGDPD!$K$1:$CE$1,0)+6,0)),VLOOKUP($C44,[1]NGDPD!$E$2:$CE$305,MATCH($E44,[1]NGDPD!$K$1:$CE$1,0)+6,0),"") -> 260.9540257 | G44: =IF(ISNUMBER(VLOOKUP($C44,[1]BX_WEO!$E$2:$CE$305,MATCH($E44,[1]BX_WEO!$K$1:$CE$1,0)+6,0)),VLOOKUP($C44,[1]BX_WEO!$E$2:$CE$305,MATCH($E44,[1]BX_WEO!$K$1:$CE$1,0)+6,0),"") -> 85.7795 | H44: =IF(ISNUMBER(VLOOKUP($C44,[1]BM_WEO!$E$2:$CE$304,MATCH($E44,[1]BM_WEO!$K$1:$CE$1,0)+6,0)),VLOOKUP($C44,[1]BM_WEO!$E$2:$CE$304,MATCH($E44,[1]BM_WEO!$K$1:$CE$1,0)+6,0),"") -> 83.01 | I44: =IF(AND(ISNUMBER(J44),ISNUMBER(K44)),J44-K44,"") -> -7131654.464 | J44: 21503427.25 | K44: 28635081.71 | L44: 1 | BM44: 2014 | BN44: 0.01872552066 | BO44: 0.01061298055 | BP44: =IF(ISNUMBER(VLOOKUP($C44,[1]BIS_WEO!$E$2:$CE$304,MATCH($E44,[1]BIS_WEO!$K$1:$CE$1,0)+6,0)),VLOOKUP($C44,[1]BIS_WEO!$E$2:$CE$304,MATCH($E44,[1]BIS_WEO!$K$1:$CE$1,0)+6,0),"") -> 2.117 | BQ44: 0.00811254011 | BR44: 224.005 | BS44: 0.8584079109 | BT44: =IF(ISNUMBER(VLOOKUP($C44,[1]IA_BP6!$E$2:$CE$304,MATCH($E44,[1]IA_BP6!$K$1:$CE$1,0)+6,0)),VLOOKUP($C44,[1]IA_BP6!$E$2:$CE$304,MATCH($E44,[1]IA_BP6!$K$1:$CE$1,0)+6,0),"") -> 324.3903786 | BU44: 1.243093981 | BV44: =IF(ISNUMBER(VLOOKUP($C44,[1]IL_BP6!$E$2:$CE$304,MATCH($E44,[1]IL_BP6!$K$1:$CE$1,0)+6,0)),VLOOKUP($C44,[1]IL_BP6!$E$2:$CE$304,MATCH($E44,[1]IL_BP6!$K$1:$CE$1,0)+6,0),"") -> 360.7089644 | BW44: 1.382270166 | BX44: 0.01908381389 | BY44: 0.04254213189 | BZ44: ='[2]Chile Raw Data and Sources'!B78 -> 6.099 | CA44: ='[2]Chile Raw Data and Sources'!C78 -> 15.286 | CB44: =IF(ISNUMBER(VLOOKUP($C44,[1]PCPI!$E$2:$CE$304,MATCH($E44,[1]PCPI!$K$1:$CE$1,0)+6,0)),VLOOKUP($C44,[1]PCPI!$E$2:$CE$304,MATCH($E44,[1]PCPI!$K$1:$CE$1,0)+6,0),"") -> 104.3894667 | CC44: 0.04391998173 | CD44: =IF(ISNUMBER(VLOOKUP($C44,[1]NGDP_R!$E$2:$CE$304,MATCH($E44,[1]NGDP_R!$K$1:$CE$1,0)+6,0)),VLOOKUP($C44,[1]NGDP_R!$E$2:$CE$304,MATCH($E44,[1]NGDP_R!$K$1:$CE$1,0)+6,0),"") -> 140529
B45: 2 | C45: 228 | D45: Chile | E45: =+E44+1 -> 2015 | F45: =IF(ISNUMBER(VLOOKUP($C45,[1]NGDPD!$E$2:$CE$305,MATCH($E45,[1]NGDPD!$K$1:$CE$1,0)+6,0)),VLOOKUP($C45,[1]NGDPD!$E$2:$CE$305,MATCH($E45,[1]NGDPD!$K$1:$CE$1,0)+6,0),"") -> 242.5367154 | G45: =IF(ISNUMBER(VLOOKUP($C45,[1]BX_WEO!$E$2:$CE$305,MATCH($E45,[1]BX_WEO!$K$1:$CE$1,0)+6,0)),VLOOKUP($C45,[1]BX_WEO!$E$2:$CE$305,MATCH($E45,[1]BX_WEO!$K$1:$CE$1,0)+6,0),"") -> 71.8193 | H45: =IF(ISNUMBER(VLOOKUP($C45,[1]BM_WEO!$E$2:$CE$304,MATCH($E45,[1]BM_WEO!$K$1:$CE$1,0)+6,0)),VLOOKUP($C45,[1]BM_WEO!$E$2:$CE$304,MATCH($E45,[1]BM_WEO!$K$1:$CE$1,0)+6,0),"") -> 71.772 | I45: =J45-K45 -> -7337869.74 | J45: 20945418.26 | K45: 28283288 | L45: 1 | BM45: 2015 | BN45: 0.007859840919 | BO45: 0.0001950220193 | BP45: =IF(ISNUMBER(VLOOKUP($C45,[1]BIS_WEO!$E$2:$CE$304,MATCH($E45,[1]BIS_WEO!$K$1:$CE$1,0)+6,0)),VLOOKUP($C45,[1]BIS_WEO!$E$2:$CE$304,MATCH($E45,[1]BIS_WEO!$K$1:$CE$1,0)+6,0),"") -> 1.859 | BQ45: 0.0076648189 | BR45: 182.386 | BS45: 0.751993362 | BT45: =IF(ISNUMBER(VLOOKUP($C45,[1]IA_BP6!$E$2:$CE$304,MATCH($E45,[1]IA_BP6!$K$1:$CE$1,0)+6,0)),VLOOKUP($C45,[1]IA_BP6!$E$2:$CE$304,MATCH($E45,[1]IA_BP6!$K$1:$CE$1,0)+6,0),"") -> 314.2320457 | BU45: 1.295606091 | BV45: =IF(ISNUMBER(VLOOKUP($C45,[1]IL_BP6!$E$2:$CE$304,MATCH($E45,[1]IL_BP6!$K$1:$CE$1,0)+6,0)),VLOOKUP($C45,[1]IL_BP6!$E$2:$CE$304,MATCH($E45,[1]IL_BP6!$K$1:$CE$1,0)+6,0),"") -> 359.3382525 | BW45: 1.48158291 | BX45: 0.01402667856 | BY45: 0.02957790245 | BZ45: ='[2]Chile Raw Data and Sources'!B79 -> 4.748 | CA45: ='[2]Chile Raw Data and Sources'!C79 -> 11.133 | CB45: =IF(ISNUMBER(VLOOKUP($C45,[1]PCPI!$E$2:$CE$304,MATCH($E45,[1]PCPI!$K$1:$CE$1,0)+6,0)),VLOOKUP($C45,[1]PCPI!$E$2:$CE$304,MATCH($E45,[1]PCPI!$K$1:$CE$1,0)+6,0),"") -> 108.9292667 | CC45: 0.04348906211 | CD45: =IF(ISNUMBER(VLOOKUP($C45,[1]NGDP_R!$E$2:$CE$304,MATCH($E45,[1]NGDP_R!$K$1:$CE$1,0)+6,0)),VLOOKUP($C45,[1]NGDP_R!$E$2:$CE$304,MATCH($E45,[1]NGDP_R!$K$1:$CE$1,0)+6,0),"") -> 143693
B46: 3 | C46: 228 | D46: Chile | E46: 2016 | F46: 247.0251512 | G46: 70.0974 | H46: 67.978 | L46: 1 | BM46: 2016 | BN46: 0.01434428836 | BO46: 0.00857969316 | BP46: 1.424 | BQ46: 0.005764595196 | BR46: 183.0547949 | BS46: 0.7410370725 | BT46: 330.629704 | BU46: 1.338445508 | BV46: 379.3095108 | BW46: 1.53550968 | BX46: 0.01120069599 | BY46: 0.02836259225 | BZ46: 3.653 | CA46: 10.578 | CB46: 113.0573417 | CC46: 0.03789684009 | CD46: 145928
B47: 4 | C47: 228 | D47: Chile | E47: 2017 | F47: 251.2204383 | G47: 77.76363681 | H47: 73.36800766 | L47: 1 | BM47: 2017 | BN47: 0.02387609844 | BO47: 0.0174971001 | BP47: 1.60253476 | BQ47: 0.006378998342 | BR47: 177.7899065 | BS47: 0.7077047856 | BT47: 348.2197669 | BU47: 1.386112409 | BV47: 400.3384524 | BW47: 1.593574373 | BX47: 0.01078572885 | BY47: 0.03360253894 | BZ47: 3.665834959 | CA47: 13.10229482 | CB47: 116.2198503 | CC47: 0.02797260748 | CD47: 148367.6604
B48: 5 | C48: 228 | D48: Chile | E48: 2018 | F48: 262.0030277 | G48: 80.60542174 | H48: 76.3594542 | L48: 1 | BM48: 2018 | BN48: 0.02243018735 | BO48: 0.01620579571 | BP48: 1.630809454 | BQ48: 0.006224391633 | BR48: 126.4435131 | BS48: 0.4826032514 | BT48: 366.9006333 | BU48: 1.400367914 | BV48: 423.412832 | BW48: 1.616060836 | BX48: 0.009646449004 | BY48: 0.03328566543 | BZ48: 3.461242824 | CA48: 13.73079631 | CB48: 119.7544021 | CC48: 0.0304126344 | CD48: 151804.5968
B49: 6 | C49: 228 | D49: Chile | E49: 2019 | F49: 274.0335057 | G49: 83.95155459 | H49: 79.83118153 | L49: 1 | BM49: 2019 | BN49: 0.02116095155 | BO49: 0.01503601923 | BP49: 1.678436677 | BQ49: 0.006124932322 | BR49: 128.1213276 | BS49: 0.4675389139 | BT49: 386.7956785 | BU49: 1.411490458 | BV49: 448.4869128 | BW49: 1.636613419 | BX49: 0.008497298127 | BY49: 0.0325335197 | BZ49: 3.211193986 | CA49: 14.188363 | CB49: 123.3470342 | CC49: 0.03 | CD49: 155903.3209
B50: 7 | C50: 228 | D50: Chile | E50: 2020 | F50: 287.3431341 | G50: 87.5121813 | H50: 83.48452899 | L50: 1 | BM50: 2020 | BN50: 0.02004720185 | BO50: 0.01401687334 | BP50: 1.732773495 | BQ50: 0.006030328515 | BR50: 139.4666461 | BS50: 0.4853662035 | BT50: 408.0342934 | BU50: 1.420024511 | BV50: 475.6453189 | BW50: 1.655321678 | BX50: 0.007595279127 | BY50: 0.03183400944 | BZ50: 3.025955777 | CA50: 14.70545071 | CB50: 127.0474452 | CC50: 0.03 | CD50: 160424.5173
B51: 8 | C51: 228 | D51: Chile | E51: 2021 | F51: 302.1126559 | G51: 91.38761956 | H51: 87.34116378 | BM51: 2021 | BN51: 0.01933719969 | BO51: 0.01339386384 | BP51: 1.79555698 | BQ51: 0.005943335854 | BR51: 97.84974201 | BS51: 0.3238849485 | BT51: 430.7647157 | BU51: 1.425841345 | BV51: 504.873825 | BW51: 1.671144241 | BX51: 0.006445928045 | BY51: 0.03071631664 | BZ51: 2.709064486 | CA51: 15.04837439 | CB51: 130.8588686 | CC51: 0.03 | CD51: 165445.8046
B52: 9 | C52: 228 | D52: Chile | E52: 2022 | F52: 321.3020241 | G52: 95.56290936 | H52: 91.35081611 | BM52: 2022 | BN52: 0.01892197627 | BO52: 0.01310945137 | BP52: 1.867576016 | BQ52: 0.005812524902 | BR52: 98.84974201 | BS52: 0.3076536548 | BT52: 455.1203238 | BU52: 1.416487572 | BV52: 536.5488581 | BW52: 1.669920567 | BX52: 0.00478505115 | BY52: 0.02984753672 | BZ52: 2.123068134 | CA52: 15.52131723 | CB52: 134.7846346 | CC52: 0.03 | CD52: 170824.4477
BP53: =IF(ISNUMBER(VLOOKUP($C53,[1]BIS_WEO!$E$2:$CE$304,MATCH($E53,[1]BIS_WEO!$K$1:$CE$1,0)+6,0)),VLOOKUP($C53,[1]BIS_WEO!$E$2:$CE$304,MATCH($E53,[1]BIS_WEO!$K$1:$CE$1,0)+6,0),"") ->  | BV53: =IF(ISNUMBER(VLOOKUP($C53,[1]IL_BP6!$E$2:$CE$304,MATCH($E53,[1]IL_BP6!$K$1:$CE$1,0)+6,0)),VLOOKUP($C53,[1]IL_BP6!$E$2:$CE$304,MATCH($E53,[1]IL_BP6!$K$1:$CE$1,0)+6,0),"") -> 
BP54: =IF(ISNUMBER(VLOOKUP($C54,[1]BIS_WEO!$E$2:$CE$304,MATCH($E54,[1]BIS_WEO!$K$1:$CE$1,0)+6,0)),VLOOKUP($C54,[1]BIS_WEO!$E$2:$CE$304,MATCH($E54,[1]BIS_WEO!$K$1:$CE$1,0)+6,0),"") ->  | BV54: =IF(ISNUMBER(VLOOKUP($C54,[1]IL_BP6!$E$2:$CE$304,MATCH($E54,[1]IL_BP6!$K$1:$CE$1,0)+6,0)),VLOOKUP($C54,[1]IL_BP6!$E$2:$CE$304,MATCH($E54,[1]IL_BP6!$K$1:$CE$1,0)+6,0),"") -> 
BP55: =IF(ISNUMBER(VLOOKUP($C55,[1]BIS_WEO!$E$2:$CE$304,MATCH($E55,[1]BIS_WEO!$K$1:$CE$1,0)+6,0)),VLOOKUP($C55,[1]BIS_WEO!$E$2:$CE$304,MATCH($E55,[1]BIS_WEO!$K$1:$CE$1,0)+6,0),"") ->  | BV55: =IF(ISNUMBER(VLOOKUP($C55,[1]IL_BP6!$E$2:$CE$304,MATCH($E55,[1]IL_BP6!$K$1:$CE$1,0)+6,0)),VLOOKUP($C55,[1]IL_BP6!$E$2:$CE$304,MATCH($E55,[1]IL_BP6!$K$1:$CE$1,0)+6,0),"") -> 
BV56: =IF(ISNUMBER(VLOOKUP($C56,[1]IL_BP6!$E$2:$CE$304,MATCH($E56,[1]IL_BP6!$K$1:$CE$1,0)+6,0)),VLOOKUP($C56,[1]IL_BP6!$E$2:$CE$304,MATCH($E56,[1]IL_BP6!$K$1:$CE$1,0)+6,0),"") -> 
BV57: =IF(ISNUMBER(VLOOKUP($C57,[1]IL_BP6!$E$2:$CE$304,MATCH($E57,[1]IL_BP6!$K$1:$CE$1,0)+6,0)),VLOOKUP($C57,[1]IL_BP6!$E$2:$CE$304,MATCH($E57,[1]IL_BP6!$K$1:$CE$1,0)+6,0),"") -> 
BV58: =IF(ISNUMBER(VLOOKUP($C58,[1]IL_BP6!$E$2:$CE$304,MATCH($E58,[1]IL_BP6!$K$1:$CE$1,0)+6,0)),VLOOKUP($C58,[1]IL_BP6!$E$2:$CE$304,MATCH($E58,[1]IL_BP6!$K$1:$CE$1,0)+6,0),"") -> 

Sheet Sheet4 (hidden)
A1: =1 -> 1 | B1: =_xll.RiskCDS1([0]!NewMatrix2,[0]!NewMatrix2,Sheet4!A1+(0*1000000000)) ->  | C1: =_xll.RiskCDS2(Sheet4!B1,1,) ->  | D1: =_xll.RiskCDS2(Sheet4!B1,2,) ->  | E1: =_xll.RiskCDS2(Sheet4!B1,3,) ->  | F1: =_xll.RiskCDS2(Sheet4!B1,4,) ->  | G1: =_xll.RiskCDS2(Sheet4!B1,4,) ->  | H1: =_xll.RiskCDS2(Sheet4!B1,5,) -> 

Sheet RiskSerializationData (hidden)
A1: 5 | B1: 0
A2: 0
A3: =Simulations!$S$7 ->  | B3: TRUE | C3: 0 | D3: 1 | E3: GF1_rK0qDwEADgDlAAwjACYAOQBfAHMAdACCAJAAvwDhANsAKgD//wAAAAAAAQQAAAAABTAuMDAlAAAAASBuZmEgc3MsIHdpdGggdmFsIC8gTkZBIHZhbHVhdGlvbgEAAQEQAAIAAQpTdGF0aXN0aWNzAwEBAP8BAQEBAQABAQEABAAAAAEBAQEBAAEBAQAEAAAAAZQAAicAIG5mYSBzcywgd2l0aCB2YWwgLyBORkEgdmFsdWF0aW9uAAAvAQIAAgDHANEAAQECAZqZmZmZmak/AABmZmZmZmbuPwAABQABAQEAAQEBAA== | F3: 1 | G3: 0 | H3: 0 | J3: >75% | K3: <25% | L3: >90% | AG3: =Simulations!$S$7 ->  | AH3: 1 | AI3: 1 | AJ3: FALSE | AK3: TRUE | AL3: 0 | AM3: FALSE | AN3: =_ -> 
A4: =Simulations!$BV$53 -> 0 | B4: TRUE | C4: 0 | D4: 1 | E4: GF1_rK0qDwEADgCuAAwjACYAOABDAFcAWABmAHQAiACqAKQAKgD//wAAAAAAAQQAAAAABDAuMCUAAAABBVNTIE5YAQABARAAAgABClN0YXRpc3RpY3MDAQEA/wEBAQEBAAEBAQAEAAAAAQEBAQEAAQEBAAQAAAABeAACDAAFU1MgTlgAAC8BAgACAJAAmgABAQIBmpmZmZmZqT8AAGZmZmZmZu4/AAAFAAEBAQABAQEA | F4: 1 | G4: 0 | H4: 0 | J4: >75% | K4: <25% | L4: >90% | AG4: =Simulations!$BV$53 -> 0 | AH4: 12 | AI4: 1 | AJ4: FALSE | AK4: TRUE | AL4: 0 | AM4: FALSE | AN4: =_ -> 
A5: =Simulations!$BV$54 -> 0 | B5: TRUE | C5: 0 | D5: 1 | E5: GF1_rK0qDwEADgCpAAwjACYAOQBBAFUAVgBkAHIAgwClAJ8AKgD//wAAAAAAAQQAAAAABTAuMDAlAAAAAQJyMQEAAQEQAAIAAQpTdGF0aXN0aWNzAwEBAP8BAQEBAQABAQEABAAAAAEBAQEBAAEBAQAEAAAAAXYAAgkAAnIxAAAvAQIAAgCLAJUAAQECAZqZmZmZmak/AABmZmZmZmbuPwAABQABAQEAAQEBAA== | F5: 1 | G5: 0 | H5: 0 | J5: >75% | K5: <25% | L5: >90% | AG5: =Simulations!$BV$54 -> 0 | AH5: 13 | AI5: 1 | AJ5: FALSE | AK5: TRUE | AL5: 0 | AM5: FALSE | AN5: =_ -> 
A6: =Simulations!$AV$31 ->  | B6: FALSE | C6: 1 | D6: 1 | E6: GF1_rK0qDwEADgD4AAwjACYAOABqAH4AfwCNAJsA0gD0AO4AKgD//wAAAAAAAQQAAAAABDAuMDAAAAABDW4uYS4gLyBhc3NldHMBH0NvbXBhcmlzb24gd2l0aCBOb3JtYWwoMCwwLjAzNSkBARAAAgABClN0YXRpc3RpY3MDAQEA/wEBAQEBAAEBAQAEAAAAAQEBAQEAAQEBAAQAAAACogACugAAFAANbi5hLiAvIGFzc2V0cwAALwECAAIAFgAPTm9ybWFsKDAsMC4wMzUpAQElAQIA2gDkAAEBAgGamZmZmZmpPwAAZmZmZmZm7j8AAAUAAQEBAAEBAQA= | F6: 2 | G6: 0 | H6: 0 | AG6: =Simulations!$AV$31 ->  | AH6: 10 | AI6: 1 | AJ6: FALSE | AK6: FALSE | AL6: 1 | AM6: FALSE | AN6: =_ ->  | AO6: =Simulations!$AV$31 ->  | AP6: 10 | AQ6: 1 | AR6: TRUE | AS6: FALSE | AT6: 1 | AU6: TRUE | AV6: =_RiskNormal(0,0.035,_xll.RiskCorrmat(NewMatrix4,5)) -> 
A7: =Simulations!$AR$35 ->  | B7: FALSE | C7: 1 | D7: 1 | E7: GF1_rK0qDwEADgD8AAwjACYAOABsAIAAgQCPAJ0A1gD4APIAKgD//wAAAAAAAQQAAAAABDAuMDAAAAABD24uYS4gLyBueCBzaG9jawEfQ29tcGFyaXNvbiB3aXRoIE5vcm1hbCgwLDAuMDAzKQEBEAACAAEKU3RhdGlzdGljcwMBAQD/AQEBAQEAAQEBAAQAAAABAQEBAQABAQEABAAAAAKkAAK+AAAWAA9uLmEuIC8gbnggc2hvY2sAAC8BAgACABYAD05vcm1hbCgwLDAuMDAzKQEBJQECAN4A6AABAQIBmpmZmZmZqT8AAGZmZmZmZu4/AAAFAAEBAQABAQEA | F7: 2 | G7: 0 | H7: 0 | AG7: =Simulations!$AR$35 ->  | AH7: 26 | AI7: 1 | AJ7: FALSE | AK7: FALSE | AL7: 1 | AM7: FALSE | AN7: =_ ->  | AO7: =Simulations!$AR$35 ->  | AP7: 26 | AQ7: 1 | AR7: TRUE | AS7: FALSE | AT7: 1 | AU7: TRUE | AV7: =_RiskNormal(0,0.003,_xll.RiskCorrmat(NewMatrix4,1)) -> 
A8: 0
A9: FALSE | B9: 13440 | C9: 6215 | D9: 7050 | E9: 100
A10: FALSE | B10: 13440 | C10: 6215 | D10: 7050 | E10: 500
A11: FALSE | B11: 13440 | C11: 6215 | D11: 7050 | E11: 1000
A12: FALSE | B12: 13440 | C12: 6215 | D12: 7050 | E12: 1500
A13: FALSE | B13: 13440 | C13: 6215 | D13: 7050 | E13: 2000
A14: 0
A15: 0 | B15: FALSE | C15: FALSE | D15: 10 | E15: 0.95 | F15: 1

Sheet Simulations
L1: 0.2 | M1: 0.1 | S1: NFA valuation | AA1: Elasticity of NX to REER
P2: ∆%(REER)= | S2: 0.0005756813728 | Z2: Period 1 | AA2: -0.3
P3: REER_0= | S3: 100 | Z3: Period 2 | AA3: =AA2 -> -0.3 | AW3: Fx composition of the stocks of A and L:
P4: REER_1= | S4: =S3*(1+S2) -> 100.0575681 | Z4: Period 3 | AA4: =AA3 -> -0.3 | AX4: A/GDP | AY4: L/GDP
Z5: Period 4 | AA5: =AA4 -> -0.3 | AW5: 2016 | AX5: =Data!BU46 -> 1.338445508 | AY5: =Data!BW46 -> 1.53550968
P6: nfa= | Z6: Period 5 | AA6: =AA5 -> -0.3 | AW6: A, FC | AX6: 1
Q7: ER Solution: | S7: =_xll.RiskOutput()+S2 ->  | Z7: Period 6 | AA7: -0.3 | AW7: L, FC | AX7: 0.3
AA8: =SUM(AA2:AA7) -> -1.8
AW9: NFA/GDP (Local Currency, Assets) | AX9: NFA/GDP (Foreign Currency, Assets) | AY9: NFA/GDP (Local Currency, Liab.)
BN10: adj. trade balance (using revalued S2 Ex Rate) | BP10: assets/gdp | BQ10: returns on assets | BR10: returns on liabilities | BS10: year
AT11: AR1 | AU11: I if SC
AT12: 0.83 | AU12: 1 | AV12: nx
AT13: 0.23 | AU13: 1 | AV13: rg
AT14: 0.27 | AU14: 1 | AV14: ryol
AT15: 0.06 | AU15: 1 | AV15: ryoa
AT16: 0.27 | AU16: 1 | AV16: assets | AW16: Data from Benetrix Lane and Shambaugh
AS17: Defining the distribution of innovations
AR18: nx | AS18: =RiskNormal(0,0.029,RiskCorrmat(NewMatrix4,1)) -> 
AR19: rg | AS19: =RiskNormal(0,0.032,RiskCorrmat(NewMatrix4,2)) -> 
AR20: ryol | AS20: =RiskNormal(0,0.046,RiskCorrmat(NewMatrix4,3)) ->  | AW20: 0.1727778 | AX20: 0.2048984 | AY20: 0.3675245 | AZ20: 0.05614417 | BA20: =AW20+AX20-(AY20+AZ20) -> -0.04599247
AR21: ryoa | AS21: =RiskNormal(0,0.053,RiskCorrmat(NewMatrix4,4)) ->  | AW21: 0.165739 | AX21: 0.2308751 | AY21: 0.3956025 | AZ21: 0.05994879 | BA21: -0.05893719
AR22: assets | AS22: =RiskNormal(0,0.054, RiskCorrmat(NewMatrix4,4)) ->  | AW22: 0.1576105 | AX22: 0.2178052 | AY22: 0.4005241 | AZ22: 0.06001808 | BA22: -0.08512648
AQ23: Defining the correlation matrix | AW23: 0.1598096 | AX23: 0.2891406 | AY23: 0.4210699 | AZ23: 0.06496212 | BA23: -0.03708182
Q24: nx | R24: g | S24: rL | T24: rA | U24: a | V24: REER | AQ24: @RISK Correlations | AR24: ="n.a. / nx shock in "&CELL("address",$AR$36) -> n.a. / nx shock in $AR$36 | AS24: ="n.a. / g shock in "&CELL("address",$AS$36) -> n.a. / g shock in $AS$36 | AT24: ="n.a. / yol shock in "&CELL("address",$AT$36) -> n.a. / yol shock in $AT$36 | AU24: ="n.a. / yoa shock in "&CELL("address",$AU$36) -> n.a. / yoa shock in $AU$36 | AV24: ="assets / RHS in "&CELL("address",$AS$23) -> assets / RHS in $AS$23 | AW24: 0.1629616 | AX24: 0.2916378 | AY24: 0.4152612 | AZ24: 0.07261724 | BA24: -0.03327904
P25: nx | Q25: 0.029 | AQ25: ="n.a. / nx shock in "&CELL("address",$AR$36) -> n.a. / nx shock in $AR$36 | AR25: 1 | AW25: 0.1742066 | AX25: 0.348024 | AY25: 0.4903389 | AZ25: 0.08692428 | BA25: -0.05503258
P26: g | Q26: -0.13 | R26: 0.032 | AQ26: ="n.a. / g shock in "&CELL("address",$AS$36) -> n.a. / g shock in $AS$36 | AR26: =Q26 -> -0.13 | AS26: 1 | AW26: 0.1933275 | AX26: 0.3892794 | AY26: 0.5590253 | AZ26: 0.08201035 | BA26: -0.05842875
P27: rL | Q27: 0.35 | R27: -0.35 | S27: 0.046 | AQ27: ="n.a. / yol shock in "&CELL("address",$AT$36) -> n.a. / yol shock in $AT$36 | AR27: =Q27 -> 0.35 | AS27: =R27 -> -0.35 | AT27: 1 | AW27: 0.2088172 | AX27: 0.4297897 | AY27: 0.6721349 | AZ27: 0.07468798 | BA27: -0.10821598
P28: rA | Q28: 0.03 | R28: -0.15 | S28: 0.002 | T28: 0.053 | AQ28: ="n.a. / yoa shock in "&CELL("address",$AU$36) -> n.a. / yoa shock in $AU$36 | AR28: =Q28 -> 0.03 | AS28: =R28 -> -0.15 | AT28: =S28 -> 0.002 | AU28: 1 | AW28: 0.210137 | AX28: 0.4876854 | AY28: 0.7616165 | AZ28: 0.06722937 | BA28: -0.13102347
P29: a | Q29: 0.18 | R29: -0.18 | S29: -0.12 | T29: 0.86 | U29: 0.054 | AQ29: ="assets / RHS in "&CELL("address",$AS$23) -> assets / RHS in $AS$23 | AR29: =Q29 -> 0.18 | AS29: =R29 -> -0.18 | AT29: =S29 -> -0.12 | AU29: =T29 -> 0.86 | AV29: 1 | AW29: 0.2148117 | AX29: 0.5753722 | AY29: 0.8572143 | AZ29: 0.05309301 | BA29: -0.12012341
AR30: nx shock | AS30: g shock | AT30: yol shock | AU30: yoa shock | AV30: assets | AW30: 0.2373044 | AX30: 0.5092995 | AY30: 0.8663382 | AZ30: 0.04862792 | BA30: -0.16836222
AR31: =RiskNormal(0,0.029,RiskCorrmat(NewMatrix4,1)) ->  | AS31: =RiskNormal(0,0.032,RiskCorrmat(NewMatrix4,2)) ->  | AT31: =RiskNormal(0,0.046,RiskCorrmat(NewMatrix4,3)) ->  | AU31: =RiskNormal(0,0.053,RiskCorrmat(NewMatrix4,4)) ->  | AV31: =RiskNormal(0,0.054,RiskCorrmat(NewMatrix4,5)) ->  | AW31: 0.2428708 | AX31: 0.4361546 | AY31: 0.8685518 | AZ31: 0.04926327 | BA31: -0.23878967
AR32: =(RiskNormal(0,0.029,RiskCorrmat(NewMatrix4,1))*(1-$AU$12))+($AU$12*(RiskNormal(0,0.029,RiskCorrmat(NewMatrix4,1)) + $AT$12*AR31)) ->  | AS32: =(RiskNormal(0,0.032,RiskCorrmat(NewMatrix4,2))*(1-$AU$13))+($AU$13*(RiskNormal(0,0.032,RiskCorrmat(NewMatrix4,2)) + $AT$13*AS31)) ->  | AT32: =RiskNormal(0,0.046,RiskCorrmat(NewMatrix4,3))*(1-$AU$14)+($AU$14*(RiskNormal(0,0.046,RiskCorrmat(NewMatrix4,3)) + $AT$14*AT31)) ->  | AU32: =RiskNormal(0,0.053,RiskCorrmat(NewMatrix4,4))*(1-$AU$15)+($AU$15*(RiskNormal(0,0.053,RiskCorrmat(NewMatrix4,4)) + $AT$15*AU31)) ->  | AV32: =RiskNormal(0,0.054,RiskCorrmat(NewMatrix4,5))*(1-$AU$16)+($AU$16*(RiskNormal(0,0.054,RiskCorrmat(NewMatrix4,5)) + $AT$16*AV31)) ->  | AW32: 0.2735925 | AX32: 0.3661364 | AY32: 0.8279531 | AZ32: 0.05415367 | BA32: -0.24237787
AR33: =(RiskNormal(0,0.029,RiskCorrmat(NewMatrix4,1))*(1-$AU$12))+($AU$12*(RiskNormal(0,0.029,RiskCorrmat(NewMatrix4,1)) + $AT$12*AR32)) ->  | AS33: =(RiskNormal(0,0.032,RiskCorrmat(NewMatrix4,2))*(1-$AU$13))+($AU$13*(RiskNormal(0,0.032,RiskCorrmat(NewMatrix4,2)) + $AT$13*AS32)) ->  | AT33: =RiskNormal(0,0.046,RiskCorrmat(NewMatrix4,3))*(1-$AU$14)+($AU$14*(RiskNormal(0,0.046,RiskCorrmat(NewMatrix4,3)) + $AT$14*AT32)) ->  | AU33: =RiskNormal(0,0.053,RiskCorrmat(NewMatrix4,4))*(1-$AU$15)+($AU$15*(RiskNormal(0,0.053,RiskCorrmat(NewMatrix4,4)) + $AT$15*AU32)) ->  | AV33: =RiskNormal(0,0.054,RiskCorrmat(NewMatrix4,5))*(1-$AU$16)+($AU$16*(RiskNormal(0,0.054,RiskCorrmat(NewMatrix4,5)) + $AT$16*AV32)) ->  | AW33: 0.2666063 | AX33: 0.4797094 | AY33: 0.910145 | AZ33: 0.05875904 | BA33: -0.22258834
AR34: =(RiskNormal(0,0.029,RiskCorrmat(NewMatrix4,1))*(1-$AU$12))+($AU$12*(RiskNormal(0,0.029,RiskCorrmat(NewMatrix4,1)) + $AT$12*AR33)) ->  | AS34: =(RiskNormal(0,0.032,RiskCorrmat(NewMatrix4,2))*(1-$AU$13))+($AU$13*(RiskNormal(0,0.032,RiskCorrmat(NewMatrix4,2)) + $AT$13*AS33)) ->  | AT34: =RiskNormal(0,0.046,RiskCorrmat(NewMatrix4,3))*(1-$AU$14)+($AU$14*(RiskNormal(0,0.046,RiskCorrmat(NewMatrix4,3)) + $AT$14*AT33)) ->  | AU34: =RiskNormal(0,0.053,RiskCorrmat(NewMatrix4,4))*(1-$AU$15)+($AU$15*(RiskNormal(0,0.053,RiskCorrmat(NewMatrix4,4)) + $AT$15*AU33)) ->  | AV34: =RiskNormal(0,0.054,RiskCorrmat(NewMatrix4,5))*(1-$AU$16)+($AU$16*(RiskNormal(0,0.054,RiskCorrmat(NewMatrix4,5)) + $AT$16*AV33)) ->  | AW34: 0.3059572 | AX34: 0.5454646 | AY34: 0.9934605 | AZ34: 0.07697377 | BA34: -0.21901247 | BO34: -------------+---------------------------------------------------------
AR35: =(RiskNormal(0,0.029,RiskCorrmat(NewMatrix4,1))*(1-$AU$12))+($AU$12*(RiskNormal(0,0.029,RiskCorrmat(NewMatrix4,1)) + $AT$12*AR34)) ->  | AS35: =(RiskNormal(0,0.032,RiskCorrmat(NewMatrix4,2))*(1-$AU$13))+($AU$13*(RiskNormal(0,0.032,RiskCorrmat(NewMatrix4,2)) + $AT$13*AS34)) ->  | AT35: =RiskNormal(0,0.046,RiskCorrmat(NewMatrix4,3))*(1-$AU$14)+($AU$14*(RiskNormal(0,0.046,RiskCorrmat(NewMatrix4,3)) + $AT$14*AT34)) ->  | AU35: =RiskNormal(0,0.053,RiskCorrmat(NewMatrix4,4))*(1-$AU$15)+($AU$15*(RiskNormal(0,0.053,RiskCorrmat(NewMatrix4,4)) + $AT$15*AU34)) ->  | AV35: =RiskNormal(0,0.054,RiskCorrmat(NewMatrix4,5))*(1-$AU$16)+($AU$16*(RiskNormal(0,0.054,RiskCorrmat(NewMatrix4,5)) + $AT$16*AV34)) -> 
AR36: =(RiskNormal(0,0.029,RiskCorrmat(NewMatrix4,1))*(1-$AU$12))+($AU$12*(RiskNormal(0,0.029,RiskCorrmat(NewMatrix4,1)) + $AT$12*AR35)) ->  | AS36: =(RiskNormal(0,0.032,RiskCorrmat(NewMatrix4,2))*(1-$AU$13))+($AU$13*(RiskNormal(0,0.032,RiskCorrmat(NewMatrix4,2)) + $AT$13*AS35)) ->  | AT36: =RiskNormal(0,0.046,RiskCorrmat(NewMatrix4,3))*(1-$AU$14)+($AU$14*(RiskNormal(0,0.046,RiskCorrmat(NewMatrix4,3)) + $AT$14*AT35)) ->  | AU36: =RiskNormal(0,0.053,RiskCorrmat(NewMatrix4,4))*(1-$AU$15)+($AU$15*(RiskNormal(0,0.053,RiskCorrmat(NewMatrix4,4)) + $AT$15*AU35)) ->  | AV36: =RiskNormal(0,0.054,RiskCorrmat(NewMatrix4,5))*(1-$AU$16)+($AU$16*(RiskNormal(0,0.054,RiskCorrmat(NewMatrix4,5)) + $AT$16*AV35)) -> 
AQ39: Debt less disc val | AR39: =_xll.RiskOutput()+(1-(PRODUCT(AX54:AX59)))*AJ45 -> 
AQ41: Debt less disc val after revaluation | AR41: =_xll.RiskOutput()+(AR39)+($S$2*BB43) ->  | AT41: Debt less its discounted value NO reval | AU41: =(AR39) -> 
AW43: Elasticity of Net Debt to ER: | BB43: =AX45-AZ45 -> 0.8777926041
AS44: Reval: | AT44: =T53-AR41 ->  | AU44: =$T$4 -> 0
AJ45: =AY5-AX5 -> 0.1970641717 | AS45: No reval | AT45: =T52-AU51 ->  | AU45: =$S$4 -> 100.0575681 | AW45: =(1-AX6)*AX5 -> 0 | AX45: =AX6*AX5 -> 1.338445508 | AY45: =(1-AX7)*AY5 -> 1.074856776 | AZ45: =AX7*AY5 -> 0.4606529039 | BA45: =AW45+AX45-(AY45+AZ45) -> -0.1970641717 | BS45: 2016
AQ46: =PRODUCT(AX$54:AX54) ->  | AR46: =+AQ46*(-BN46) ->  | AS46: =+AQ46*(Data!BN46 + (BQ46-BR46)*BP46) ->  | BN46: =(Data!BN47+AR31+AA2*$S$2)+((BQ46-BR46)*BP46) ->  | BP46: =Data!BU47+AV31 ->  | BQ46: =Data!BX47+AU31 ->  | BR46: =Data!BY47+AT31 ->  | BS46: 2017
AQ47: =PRODUCT(AX$54:AX55) ->  | AS47: =+AQ47*(Data!BN47 + (BQ47-BR47)*BP47) ->  | BN47: =(Data!BN48+AR32+AA3*$S$2)+((BQ47-BR47)*BP47) ->  | BP47: =Data!BU48+AV32 ->  | BQ47: =Data!BX48+AU32 ->  | BR47: =Data!BY48+AT32 ->  | BS47: 2018
AQ48: =PRODUCT(AX$54:AX56) ->  | AS48: =+AQ48*(Data!BN48 + (BQ48-BR48)*BP48) ->  | BN48: =(Data!BN49+AR33+AA4*$S$2)+((BQ48-BR48)*BP48) ->  | BP48: =Data!BU49+AV33 ->  | BQ48: =Data!BX49+AU33 ->  | BR48: =Data!BY49+AT33 ->  | BS48: 2019
AQ49: =PRODUCT(AX$54:AX57) ->  | AS49: =+AQ49*(Data!BN49 + (BQ49-BR49)*BP49) ->  | BN49: =(Data!BN50+AR34+AA5*$S$2)+((BQ49-BR49)*BP49) ->  | BP49: =Data!BU50+AV34 ->  | BQ49: =Data!BX50+AU34 ->  | BR49: =Data!BY50+AT34 ->  | BS49: 2020
AQ50: =PRODUCT(AX$54:AX58) ->  | AS50: =+AQ50*(Data!BN50 + (BQ50-BR50)*BP50) ->  | BN50: =(Data!BN51+AR35+AA6*$S$2)+((BQ50-BR50)*BP50) ->  | BP50: =Data!BU51+AV35 ->  | BQ50: =Data!BX51+AU35 ->  | BR50: =Data!BY51+AT35 ->  | BS50: 2021
AQ51: =PRODUCT(AX$54:AX59) ->  | AS51: =+AQ51*(Data!BN51 + (BQ51-BR51)*BP51) ->  | BN51: =(Data!BN52+AR36+AA7*$S$2)+((BQ51-BR51)*BP51) ->  | BP51: =Data!BU52+AV36 ->  | BQ51: =Data!BX52+AU36 ->  | BR51: =Data!BY52+AT36 ->  | BS51: 2022
Q52: PV of trunc sum at T2 ER, NO REVAL | T52: =_xll.RiskOutput()+BO60+($T$2*AA8)+BP60 -> 
Q53: PV of trunc sum at S2 ER, with REVAL | T53: =_xll.RiskOutput()+BO60+($S$2*AA8)+BP60 ->  | AU53: Shocks to Growth | AW53: Shocks to returns | AX53: Shocks to Discount | BN53: Present Value of NX
AT54: Weo g pd1 | AU54: =LN(Data!CD47)-LN(Data!CD46)+AS31 ->  | AV54: r1 | AW54: =BR46 ->  | AX54: =(1+AU54)/(1+AW54) ->  | BN54: =AQ46*((Data!BN47+AR31)+((BQ46-BR46)*BP46)) ->  | BO54: =AQ46*(Data!BN47+AR31) ->  | BP54: =AQ46*((BQ46-BR46)*BP46) -> 
AT55: Weo g pd2 | AU55: =LN(Data!CD48)-LN(Data!CD47)+AS32 ->  | AV55: r2 | BN55: =AQ47*((Data!BN48+AR32)+((BQ47-BR47)*BP47)) ->  | BO55: =AQ47*(Data!BN48+AR32) ->  | BP55: =AQ47*((BQ47-BR47)*BP47) -> 
AT56: Weo g pd3 | AU56: =LN(Data!CD49)-LN(Data!CD48)+AS33 ->  | AV56: r3 | BN56: =AQ48*((Data!BN49+AR33)+((BQ48-BR48)*BP48)) ->  | BO56: =AQ48*(Data!BN49+AR33) -> 
AT57: Weo g pd4 | AU57: =LN(Data!CD50)-LN(Data!CD49)+AS34 ->  | AV57: r4 | BN57: =AQ49*((Data!BN50+AR34)+((BQ49-BR49)*BP49)) ->  | BO57: =AQ49*(Data!BN50+AR34) -> 
AT58: Weo g pd5 | AU58: =LN(Data!CD51)-LN(Data!CD50)+AS35 ->  | AV58: r5 | BN58: =AQ50*((Data!BN51+AR35)+((BQ50-BR50)*BP50)) ->  | BO58: =AQ50*(Data!BN51+AR35) -> 
AT59: Weo g pd6 | AU59: =LN(Data!CD52)-LN(Data!CD51)+AS36 ->  | AV59: r6 | BN59: =AQ51*((Data!BN52+AR36)+((BQ51-BR51)*BP51)) ->  | BO59: =AQ51*(Data!BN52+AR36) -> 
BN60: =_xll.RiskOutput()+SUM(BN54:BN59) ->  | BO60: =_xll.RiskOutput()+SUM(BO54:BO59) ->  | BP60: =_xll.RiskOutput()+SUM(BP54:BP59) -> 
BN61: All | BO61: NX only | BP61: Fin only

Sheet Nonlinear_1 (2) (hidden)
A5: t | C5: A/M | D5: residuals | E5: Forecast | J5: A/M | K5: residuals | L5: forecast
A6: 1 | B6: =Data!#REF! ->  | C6: =IFERROR(#REF!,#N/A) ->  | D6: =IFERROR(C6-E6,#N/A) ->  | E6: =IFERROR(#REF!,#N/A) ->  | G6: =Data!D3 -> 228 | H6: =Data!D2 -> Chile | I6: =#REF! ->  | J6: =C6 ->  | K6: =J6-L6 ->  | L6: =IF(D6="#N/A",#N/A,E6) -> 
A7: 2 | B7: =Data!#REF! ->  | C7: =IFERROR(#REF!,#N/A) ->  | D7: =IFERROR(C7-E7,#N/A) ->  | E7: =IFERROR(#REF!,#N/A) ->  | G7: =G6 -> 228 | H7: =H6 -> Chile | I7: =#REF! ->  | J7: =C7 ->  | K7: =J7-L7 ->  | L7: =IF(D7="#N/A",#N/A,E7) -> 
A8: 3 | B8: =Data!E12 -> 1982 | C8: =IFERROR(#REF!,#N/A) ->  | E8: =IFERROR(#REF!,#N/A) ->  | G8: =G7 -> 228 | H8: =H7 -> Chile | I8: =#REF! -> 
A9: 4 | B9: =Data!E13 -> 1983 | C9: =IFERROR(#REF!,#N/A) ->  | E9: =IFERROR(#REF!,#N/A) ->  | G9: 228 | H9: Chile | I9: =#REF! -> 
A10: 5 | B10: =Data!E14 -> 1984 | C10: =IFERROR(#REF!,#N/A) ->  | E10: =IFERROR(#REF!,#N/A) ->  | G10: 228 | H10: Chile | I10: =#REF! -> 
A11: 6 | B11: =Data!E15 -> 1985 | C11: =IFERROR(#REF!,#N/A) ->  | E11: =IFERROR(#REF!,#N/A) ->  | G11: 228 | H11: Chile | I11: =#REF! -> 
A12: 7 | B12: =Data!E16 -> 1986 | C12: =IFERROR(#REF!,#N/A) ->  | E12: =IFERROR(#REF!,#N/A) ->  | G12: 228 | H12: Chile | I12: =#REF! -> 
A13: 8 | B13: =Data!E17 -> 1987 | C13: =IFERROR(#REF!,#N/A) ->  | E13: =IFERROR(#REF!,#N/A) ->  | G13: 228 | H13: Chile | I13: =#REF! -> 
A14: 9 | B14: =Data!E18 -> 1988 | C14: =IFERROR(#REF!,#N/A) ->  | E14: =IFERROR(#REF!,#N/A) ->  | G14: 228 | H14: Chile | I14: =#REF! -> 
A15: 10 | B15: =Data!E19 -> 1989 | C15: =IFERROR(#REF!,#N/A) ->  | E15: =IFERROR(#REF!,#N/A) ->  | G15: 228 | H15: Chile | I15: =#REF! -> 
A16: 11 | B16: =Data!E20 -> 1990 | C16: =IFERROR(#REF!,#N/A) ->  | E16: =IFERROR(#REF!,#N/A) ->  | G16: 228 | H16: Chile | I16: =#REF! -> 
A17: 12 | B17: =Data!E21 -> 1991 | C17: =IFERROR(#REF!,#N/A) ->  | E17: =IFERROR(#REF!,#N/A) ->  | G17: 228 | H17: Chile | I17: =#REF! -> 
A18: 13 | B18: =Data!E22 -> 1992 | C18: =IFERROR(#REF!,#N/A) ->  | E18: =IFERROR(#REF!,#N/A) ->  | G18: 228 | H18: Chile | I18: =#REF! -> 
A19: 14 | B19: =Data!E23 -> 1993 | C19: =IFERROR(#REF!,#N/A) ->  | E19: =IFERROR(#REF!,#N/A) ->  | G19: 228 | H19: Chile | I19: =#REF! -> 
A20: 15 | B20: =Data!E24 -> 1994 | C20: =IFERROR(#REF!,#N/A) ->  | E20: =IFERROR(#REF!,#N/A) ->  | G20: 228 | H20: Chile | I20: =#REF! -> 
A21: 16 | B21: =Data!E25 -> 1995 | C21: =IFERROR(#REF!,#N/A) ->  | E21: =IFERROR(#REF!,#N/A) ->  | G21: 228 | H21: Chile | I21: =#REF! -> 
A22: 17 | B22: =Data!E26 -> 1996 | C22: =IFERROR(#REF!,#N/A) ->  | E22: =IFERROR(#REF!,#N/A) ->  | G22: 228 | H22: Chile | I22: =#REF! -> 
A23: 18 | B23: =Data!E27 -> 1997 | C23: =IFERROR(#REF!,#N/A) ->  | E23: =IFERROR(#REF!,#N/A) ->  | G23: 228 | H23: Chile | I23: =#REF! -> 
A24: 19 | B24: =Data!E28 -> 1998 | C24: =IFERROR(#REF!,#N/A) ->  | E24: =IFERROR(#REF!,#N/A) ->  | G24: 228 | H24: Chile | I24: =#REF! -> 
A25: 20 | B25: =Data!E29 -> 1999 | C25: =IFERROR(#REF!,#N/A) ->  | E25: =IFERROR(#REF!,#N/A) ->  | G25: 228 | H25: Chile | I25: =#REF! -> 
A26: 21 | B26: =Data!E30 -> 2000 | C26: =IFERROR(#REF!,#N/A) ->  | E26: =IFERROR(#REF!,#N/A) ->  | G26: 228 | H26: Chile | I26: =#REF! -> 
A27: 22 | B27: =Data!E31 -> 2001 | C27: =IFERROR(#REF!,#N/A) ->  | E27: =IFERROR(#REF!,#N/A) ->  | G27: 228 | H27: Chile | I27: =#REF! -> 
A28: 23 | B28: =Data!E32 -> 2002 | C28: =IFERROR(#REF!,#N/A) ->  | E28: =IFERROR(#REF!,#N/A) ->  | G28: 228 | H28: Chile | I28: =#REF! -> 
A29: 24 | B29: =Data!E33 -> 2003 | C29: =IFERROR(#REF!,#N/A) ->  | E29: =IFERROR(#REF!,#N/A) ->  | G29: 228 | H29: Chile | I29: =#REF! -> 
A30: 25 | B30: =Data!E34 -> 2004 | C30: =IFERROR(#REF!,#N/A) ->  | E30: =IFERROR(#REF!,#N/A) ->  | G30: 228 | H30: Chile | I30: =#REF! -> 
A31: 26 | B31: =Data!E35 -> 2005 | C31: =IFERROR(#REF!,#N/A) ->  | E31: =IFERROR(#REF!,#N/A) ->  | G31: 228 | H31: Chile | I31: =#REF! -> 
A32: 27 | B32: =Data!E36 -> 2006 | C32: =IFERROR(#REF!,#N/A) ->  | E32: =IFERROR(#REF!,#N/A) ->  | G32: 228 | H32: Chile | I32: =#REF! -> 
A33: 28 | B33: =Data!E37 -> 2007 | C33: =IFERROR(#REF!,#N/A) ->  | E33: =IFERROR(#REF!,#N/A) ->  | G33: 228 | H33: Chile | I33: =#REF! -> 
A34: 29 | B34: =Data!E38 -> 2008 | C34: =IFERROR(#REF!,#N/A) ->  | E34: =IFERROR(#REF!,#N/A) ->  | G34: 228 | H34: Chile | I34: =#REF! -> 
A35: 30 | B35: =Data!E39 -> 2009 | C35: =IFERROR(#REF!,#N/A) ->  | E35: =IFERROR(#REF!,#N/A) ->  | G35: 228 | H35: Chile | I35: =#REF! -> 
A36: 31 | B36: =Data!E40 -> 2010 | C36: =IFERROR(#REF!,#N/A) ->  | E36: =IFERROR(#REF!,#N/A) ->  | G36: 228 | H36: Chile | I36: =#REF! ->  | L36: =IF(D36="#N/A",#N/A,E36) -> 
A37: 32 | B37: =Data!E41 -> 2011 | C37: =IFERROR(#REF!,#N/A) ->  | E37: =IFERROR(#REF!,#N/A) ->  | G37: 228 | H37: Chile | I37: =#REF! -> 
A38: 33 | B38: =Data!E42 -> 2012 | C38: =IFERROR(#REF!,#N/A) ->  | E38: =IFERROR(#REF!,#N/A) ->  | G38: 228 | H38: Chile | I38: =#REF! -> 
A39: 34 | B39: =Data!E43 -> 2013 | C39: =IFERROR(#REF!,#N/A) ->  | E39: =IFERROR(#REF!,#N/A) ->  | G39: 228 | H39: Chile | I39: =#REF! -> 
B40: =Data!E44 -> 2014
B41: =Data!E45 -> 2015
B42: =Data!E46 -> 2016
B43: =Data!E47 -> 2017
B44: =Data!E48 -> 2018
B45: =Data!E49 -> 2019
B46: =Data!E50 -> 2020
B47: =Data!E51 -> 2021
B48: =Data!E52 -> 2022
B49: =Data!E53 -> 0
B50: =Data!E54 -> 0
B51: =Data!E55 -> 0
B52: =Data!#REF! -> 
B53: =Data!#REF! -> 
B54: =Data!#REF! -> 
B55: =Data!#REF! -> 
B56: =Data!#REF! -> 
B57: =Data!#REF! -> 
B58: =Data!#REF! -> 
B59: =Data!#REF! -> 
B60: =Data!#REF! -> 
B61: =Data!#REF! -> 
B62: =Data!#REF! -> 
B63: =Data!#REF! -> 
B64: =Data!#REF! -> 
B65: =Data!#REF! -> 
B66: =Data!#REF! -> 
B67: =Data!#REF! -> 
B68: =Data!#REF! -> 
B69: =Data!#REF! -> 
B70: =Data!#REF! -> 
B71: =Data!#REF! -> 
B72: =Data!#REF! -> 
B73: =Data!#REF! -> 
B74: =Data!#REF! -> 
B75: =Data!#REF! -> 
B76: =Data!#REF! -> 
B77: =Data!#REF! -> 
B78: =Data!#REF! -> 
B79: =Data!#REF! -> 
B80: =Data!#REF! -> 
B81: =Data!#REF! -> 
B82: =Data!#REF! -> 
B83: =Data!#REF! -> 
B84: =Data!#REF! -> 
B85: =Data!#REF! -> 
B86: =Data!#REF! -> 
B87: =Data!#REF! -> 
B88: =Data!#REF! -> 
B89: =Data!#REF! -> 
B90: =Data!#REF! -> 
B91: =Data!#REF! -> 
B92: =Data!#REF! -> 
B93: =Data!#REF! -> 
B94: =Data!#REF! -> 
B95: =Data!#REF! -> 
B96: =Data!#REF! -> 
B97: =Data!#REF! -> 
B98: =Data!#REF! -> 
B99: =Data!#REF! -> 
B100: =Data!#REF! -> 
B101: =Data!#REF! -> 
B102: =Data!#REF! -> 
B103: =Data!#REF! -> 
B104: =Data!#REF! -> 
B105: =Data!#REF! -> 
B106: =Data!#REF! -> 
B107: =Data!#REF! -> 
B108: =Data!#REF! -> 
B109: =Data!#REF! -> 
B110: =Data!#REF! -> 
B111: =Data!#REF! -> 
B112: =Data!#REF! -> 
B113: =Data!#REF! -> 
B114: =Data!#REF! -> 
B115: =Data!#REF! -> 
B116: =Data!#REF! -> 
B117: =Data!#REF! -> 
B118: =Data!#REF! -> 
B119: =Data!#REF! -> 
B120: =Data!#REF! -> 
B121: =Data!#REF! -> 
B122: =Data!#REF! -> 
B123: =Data!#REF! -> 
B124: =Data!#REF! -> 
B125: =Data!#REF! -> 
B126: =Data!#REF! -> 
B127: =Data!#REF! -> 
B128: =Data!#REF! -> 
